Workbook

Sheet Plots for diederich's factor (hidden)
C2: Plots for Diederich's Factor
B39: C2 | D39: C4 | F39: C1 | H39: C3
B40: x | C40: y | D40: x | E40: y | F40: x | G40: y | H40: x | I40: y
B41: 0 | C41: 1 | D41: 0 | E41: 0 | F41: 0 | G41: 0 | H41: 0 | I41: 0
B42: 1 | C42: 0.9 | D42: 1 | E42: 0.09 | F42: 1 | G42: 0.04 | H42: 1 | I42: 0.04
B43: 2 | C43: 0.79 | D43: 2 | E43: 0.17 | F43: 2 | G43: 0.105 | H43: 2 | I43: 0.095
B44: 3 | C44: 0.695 | D44: 3 | E44: 0.24 | F44: 3 | G44: 0.155 | H44: 3 | I44: 0.135
B45: 4 | C45: 0.605 | D45: 4 | E45: 0.305 | F45: 4 | G45: 0.21 | H45: 4 | I45: 0.18
B46: 5 | C46: 0.515 | D46: 5 | E46: 0.365 | F46: 5 | G46: 0.255 | H46: 5 | I46: 0.22
B47: 6 | C47: 0.44 | D47: 6 | E47: 0.42 | F47: 6 | G47: 0.305 | H47: 6 | I47: 0.25
B48: 7 | C48: 0.37 | D48: 7 | E48: 0.465 | F48: 7 | G48: 0.345 | H48: 7 | I48: 0.285
B49: 8 | C49: 0.3 | D49: 8 | E49: 0.505 | F49: 8 | G49: 0.39 | H49: 8 | I49: 0.315
B50: 9 | C50: 0.23 | D50: 9 | E50: 0.54 | F50: 9 | G50: 0.43 | H50: 9 | I50: 0.34
B51: 10 | C51: 0.17 | D51: 10 | E51: 0.565 | F51: 10 | G51: 0.465 | H51: 10 | I51: 0.36
B52: 11 | C52: 0.115 | D52: 11 | E52: 0.595 | F52: 11 | G52: 0.505 | H52: 11 | I52: 0.38
B53: 12 | C53: 0.07 | D53: 12 | E53: 0.62 | F53: 12 | G53: 0.535 | H53: 12 | I53: 0.385
B54: 13 | C54: 0.02 | D54: 13 | E54: 0.645 | F54: 13 | G54: 0.565 | H54: 13 | I54: 0.395
B55: 14 | C55: 0 | D55: 14 | E55: 0.66 | F55: 14 | G55: 0.59 | H55: 14 | I55: 0.395

Sheet Plots for Sweep Correction (hidden)
C2: Plots for Sweep Correction Function
B45: -45 | D45: -30 | F45: 0 | H45: 30 | J45: 45 | L45: 60
B46: x | C46: y | D46: x | E46: y | F46: x | G46: y | H46: x | I46: y | J46: x | K46: y | L46: x | M46: y
B47: 0 | C47: 2.145 | D47: 0 | E47: 1.8 | F47: 0 | G47: 1.275 | H47: 0 | I47: 0.9 | J47: 0 | K47: 0.65 | L47: 0 | M47: 0.55
B48: 0.1 | C48: 2.09 | D48: 0.1 | E48: 1.765 | F48: 0.1 | G48: 1.26 | H48: 0.1 | I48: 0.98 | J48: 0.1 | K48: 0.82 | L48: 0.1 | M48: 0.71
B49: 0.2 | C49: 1.925 | D49: 0.2 | E49: 1.68 | F49: 0.2 | G49: 1.25 | H49: 0.2 | I49: 1.12 | J49: 0.2 | K49: 1.04 | L49: 0.2 | M49: 0.95
B50: 0.3 | C50: 1.65 | D50: 0.3 | E50: 1.545 | F50: 0.3 | G50: 1.215 | H50: 0.3 | I50: 1.22 | J50: 0.3 | K50: 1.19 | L50: 0.3 | M50: 1.14
B51: 0.4 | C51: 1.37 | D51: 0.4 | E51: 1.355 | F51: 0.4 | G51: 1.175 | H51: 0.4 | I51: 1.27 | J51: 0.4 | K51: 1.28 | L51: 0.4 | M51: 1.28
B52: 0.5 | C52: 1.085 | D52: 0.5 | E52: 1.125 | F52: 0.5 | G52: 1.105 | H52: 0.5 | I52: 1.26 | J52: 0.5 | K52: 1.31 | L52: 0.5 | M52: 1.33
B53: 0.6 | C53: 0.77 | D53: 0.6 | E53: 0.88 | F53: 0.6 | G53: 1.025 | H53: 0.6 | I53: 1.195 | J53: 0.6 | K53: 1.28 | L53: 0.6 | M53: 1.3
B54: 0.7 | C54: 0.45 | D54: 0.7 | E54: 0.6 | F54: 0.7 | G54: 0.905 | H54: 0.7 | I54: 1.09 | J54: 0.7 | K54: 1.175 | L54: 0.7 | M54: 1.22
B55: 0.8 | C55: 0.125 | D55: 0.8 | E55: 0.3 | F55: 0.8 | G55: 0.765 | H55: 0.8 | I55: 0.9 | J55: 0.8 | K55: 0.9 | L55: 0.8 | M55: 1.03
B56: 0.9 | C56: -0.255 | D56: 0.9 | E56: -0.01 | F56: 0.9 | G56: 0.55 | H56: 0.9 | I56: 0.5 | J56: 0.9 | K56: 0.57 | L56: 0.9 | M56: 0.65
B57: 1 | C57: -0.7 | D57: 1 | E57: -0.33 | F57: 1 | G57: 0.1 | H57: 1 | I57: -0.1 | J57: 1 | K57: -0.07 | L57: 1 | M57: -0.06

Sheet (c)
A1: Copyright © 2021
A2: Max Schnoor
A9: The spreadsheet for the Project
A10: "Die Diederich-Methode zur Berechnung der Auftriebsverteilung am Tragflügel in Excel"
A12: is free software: you can redistribute it and/or modify it
A13: under the terms of the GNU General Public License as published by
A14: the Free Software Foundation, License Version 3.
A16: The spreadsheet is distributed in the hope that it will be useful,
A17: but WITHOUT ANY WARRANTY; without even the implied warranty of
A18: MERCHANTABILITY or FITNESS FOR A PARTICULAR PURPOSE.
A19: See the GNU General Public License for more details.
A21: http://www.gnu.org/licenses/

Sheet Atmosphere Parameters
B2: Calculation of Atmosphere Parameters
U11: Atmosphere Values
U12: Flight altitude | V12: h | W12: =Altitude -> 10 | X12: km
U13: Kinematic viscosity | V13: ν | W13: =kin_vis -> 3.531073656 | X13: E-5 *m²/s
U14: Speed of sound | V14: a | W14: =SoSOUND -> 299.4833581 | X14: m/s
A22: kinematic
A23: viscosity | L23: speed of sound
A24: [m²/s] | L24: [m/s]
G40: altitude [km] | P40: altitude [km]
A63: Plot Tables | L63: Atmospheric Values
A64: Kinematic viscosity *(10^5) | C64: Speed of sound | E64: Temperature | G64: dynamic viscosity | I64: densitiy | L64: Temperature from altitude | M64: =IF(Altitude>11, 216.65, 288.18-6.5*Altitude) -> 223.18
A65: x | B65: y | C65: x | D65: y | E65: x | F65: Y | G65: x | H65: Y | I65: x | J65: Y | L65: Density from altitude | M65: =IF(Altitude>11, 0.3639*EXP(-0.157688*(Altitude-11)), 1.225*(1-0.022558*Altitude)^4.25588) -> 0.4126992244
A66: 0 | B66: =(H66/J66)*10^5 -> 1.460836757 | C66: 0 | D66: =20.0468*SQRT(F66) -> 340.3117749 | E66: 0 | F66: =IF(E66>11, 216.65, 288.18-6.5*E66) -> 288.18 | G66: 0 | H66: =((1.458*10^-6)*((F66)^1.5))/(F66+110.4) -> 1.789525028e-05 | I66: 0 | J66: =IF(I66>11, 0.3639*EXP(-0.157688*(I66-11)), 1.225*(1-0.022558*I66)^4.25588) -> 1.225 | L66: dynamic viscosity from altitude | M66: =((1.458*10^-6)*((Temp)^1.5))/(Temp+110.4) -> 1.457271359e-05
A67: =A66+0.5 -> 0.5 | B67: =(H67/J67)*10^5 -> 1.519617977 | C67: =C66+0.5 -> 0.5 | D67: =20.0468*SQRT(F67) -> 338.3873713 | E67: =E66+0.5 -> 0.5 | F67: =IF(E67>11, 216.65, 288.18-6.5*E67) -> 284.93 | G67: =G66+0.5 -> 0.5 | H67: =((1.458*10^-6)*((F67)^1.5))/(F67+110.4) -> 1.773801503e-05 | I67: =I66+0.5 -> 0.5 | J67: =IF(I67>11, 0.3639*EXP(-0.157688*(I67-11)), 1.225*(1-0.022558*I67)^4.25588) -> 1.167268044 | L67: kinemativ viscosity from altitude *10^5 | M67: =(dyn_vis/den)*10^5 -> 3.531073656
A68: 1 | B68: 1.581438451 | C68: =C67+0.5 -> 1 | D68: 336.4519608 | E68: 1 | F68: 281.68 | G68: 1 | H68: 1.757991831e-05 | I68: 1 | J68: 1.111641006 | L68: speed of sound from altitude | M68: =20.0468*SQRT(Temp) -> 299.4833581
A69: 1.5 | B69: 1.646491174 | C69: =C68+0.5 -> 1.5 | D69: 334.5053524 | E69: 1.5 | F69: 278.43 | G69: 1.5 | H69: 1.742094861e-05 | I69: 1.5 | J69: 1.058065108
A70: 2 | B70: 1.714983739 | C70: 2 | D70: 332.5473495 | E70: 2 | F70: 275.18 | G70: 2 | H70: 1.726109427e-05 | I70: 2 | J70: 1.006487343
A71: 2.5 | B71: 1.787139623 | C71: 2.5 | D71: 330.5777496 | E71: 2.5 | F71: 271.93 | G71: 2.5 | H71: 1.710034338e-05 | I71: 2.5 | J71: 0.9568554779
A72: 3 | B72: 1.863199601 | C72: 3 | D72: 328.5963442 | E72: 3 | F72: 268.68 | G72: 3 | H72: 1.693868382e-05 | I72: 3 | J72: 0.9091180467
A73: 3.5 | B73: 1.94342331 | C73: 3.5 | D73: 326.6029184 | E73: 3.5 | F73: 265.43 | G73: 3.5 | H73: 1.677610326e-05 | I73: 3.5 | J73: 0.863224351
A74: 4 | B74: 2.028090969 | C74: 4 | D74: 324.5972508 | E74: 4 | F74: 262.18 | G74: 4 | H74: 1.661258914e-05 | I74: 4 | J74: 0.8191244571
A75: 4.5 | B75: 2.117505281 | C75: 4.5 | D75: 322.5791129 | E75: 4.5 | F75: 258.93 | G75: 4.5 | H75: 1.644812868e-05 | I75: 4.5 | J75: 0.776769193
A76: 5 | B76: 2.211993536 | C76: 5 | D76: 320.5482693 | E76: 5 | F76: 255.68 | G76: 5 | H76: 1.628270886e-05 | I76: 5 | J76: 0.7361101465
A77: 5.5 | B77: 2.311909947 | C77: 5.5 | D77: 318.504477 | E77: 5.5 | F77: 252.43 | G77: 5.5 | H77: 1.611631644e-05 | I77: 5.5 | J77: 0.6970996628
A78: 6 | B78: 2.417638223 | C78: 6 | D78: 316.4474849 | E78: 6 | F78: 249.18 | G78: 6 | H78: 1.594893794e-05 | I78: 6 | J78: 0.6596908416
A79: 6.5 | B79: 2.529594444 | C79: 6.5 | D79: 314.3770342 | E79: 6.5 | F79: 245.93 | G79: 6.5 | H79: 1.578055964e-05 | I79: 6.5 | J79: 0.6238375354
A80: 7 | B80: 2.648230246 | C80: 7 | D80: 312.2928569 | E80: 7 | F80: 242.68 | G80: 7 | H80: 1.561116757e-05 | I80: 7 | J80: 0.589494346
A81: 7.5 | B81: 2.774036366 | C81: 7.5 | D81: 310.1946766 | E81: 7.5 | F81: 239.43 | G81: 7.5 | H81: 1.544074754e-05 | I81: 7.5 | J81: 0.556616623
A82: 8 | B82: 2.907546597 | C82: 8 | D82: 308.082207 | E82: 8 | F82: 236.18 | G82: 8 | H82: 1.52692851e-05 | I82: 8 | J82: 0.5251604605
A83: 8.5 | B83: 3.0493422 | C83: 8.5 | D83: 305.9551522 | E83: 8.5 | F83: 232.93 | G83: 8.5 | H83: 1.509676555e-05 | I83: 8.5 | J83: 0.4950826951
A84: 9 | B84: 3.200056838 | C84: 9 | D84: 303.8132058 | E84: 9 | F84: 229.68 | G84: 9 | H84: 1.492317395e-05 | I84: 9 | J84: 0.4663409028
A85: 9.5 | B85: 3.360382093 | C85: 9.5 | D85: 301.6560507 | E85: 9.5 | F85: 226.43 | G85: 9.5 | H85: 1.474849511e-05 | I85: 9.5 | J85: 0.4388933968
A86: 10 | B86: 3.531073656 | C86: 10 | D86: 299.4833581 | E86: 10 | F86: 223.18 | G86: 10 | H86: 1.457271359e-05 | I86: 10 | J86: 0.4126992244
A87: 10.5 | B87: 3.712958279 | C87: 10.5 | D87: 297.2947875 | E87: 10.5 | F87: 219.93 | G87: 10.5 | H87: 1.439581371e-05 | I87: 10.5 | J87: 0.3877181651
A88: 11 | B88: 3.906941586 | C88: 11 | D88: 295.0899855 | E88: 11 | F88: 216.68 | G88: 11 | H88: 1.421777952e-05 | I88: 11 | J88: 0.3639107269
A89: 11.5 | B89: 4.227083912 | C89: 11.5 | D89: 295.0695567 | E89: 11.5 | F89: 216.65 | G89: 11.5 | H89: 1.42161308e-05 | I89: 11.5 | J89: 0.3363105889
A90: 12 | B90: 4.573854902 | C90: 12 | D90: 295.0695567 | E90: 12 | F90: 216.65 | G90: 12 | H90: 1.42161308e-05 | I90: 12 | J90: 0.3108128942
A91: 12.5 | B91: 4.949073428 | C91: 12.5 | D91: 295.0695567 | E91: 12.5 | F91: 216.65 | G91: 12.5 | H91: 1.42161308e-05 | I91: 12.5 | J91: 0.2872483305
A92: 13 | B92: 5.355073198 | C92: 13 | D92: 295.0695567 | E92: 13 | F92: 216.65 | G92: 13 | H92: 1.42161308e-05 | I92: 13 | J92: 0.2654703357
A93: 13.5 | B93: 5.794379366 | C93: 13.5 | D93: 295.0695567 | E93: 13.5 | F93: 216.65 | G93: 13.5 | H93: 1.42161308e-05 | I93: 13.5 | J93: 0.2453434596
A94: 14 | B94: 6.26972424 | C94: 14 | D94: 295.0695567 | E94: 14 | F94: 216.65 | G94: 14 | H94: 1.42161308e-05 | I94: 14 | J94: 0.2267425209
A95: 14.5 | B95: 6.784064274 | C95: 14.5 | D95: 295.0695567 | E95: 14.5 | F95: 216.65 | G95: 14.5 | H95: 1.42161308e-05 | I95: 14.5 | J95: 0.2095518294
A96: 15 | B96: 7.340598456 | C96: 15 | D96: 295.0695567 | E96: 15 | F96: 216.65 | G96: 15 | H96: 1.42161308e-05 | I96: 15 | J96: 0.1936644659
A97: 15.5 | B97: 7.942788204 | C97: 15.5 | D97: 295.0695567 | E97: 15.5 | F97: 216.65 | G97: 15.5 | H97: 1.42161308e-05 | I97: 15.5 | J97: 0.1789816174
A98: 16 | B98: 8.594378896 | C98: 16 | D98: 295.0695567 | E98: 16 | F98: 216.65 | G98: 16 | H98: 1.42161308e-05 | I98: 16 | J98: 0.1654119625
A99: 16.5 | B99: 9.299423164 | C99: 16.5 | D99: 295.0695567 | E99: 16.5 | F99: 216.65 | G99: 16.5 | H99: 1.42161308e-05 | I99: 16.5 | J99: 0.1528711034
A100: 17 | B100: 10.0623061 | C100: 17 | D100: 295.0695567 | E100: 17 | F100: 216.65 | G100: 17 | H100: 1.42161308e-05 | I100: 17 | J100: 0.1412810409
A101: 17.5 | B101: 10.88777252 | C101: 17.5 | D101: 295.0695567 | E101: 17.5 | F101: 216.65 | G101: 17.5 | H101: 1.42161308e-05 | I101: 17.5 | J101: 0.1305696897
A102: 18 | B102: 11.78095651 | C102: 18 | D102: 295.0695567 | E102: 18 | F102: 216.65 | G102: 18 | H102: 1.42161308e-05 | I102: 18 | J102: 0.1206704293
A103: 18.5 | B103: 12.7474133 | C103: 18.5 | D103: 295.0695567 | E103: 18.5 | F103: 216.65 | G103: 18.5 | H103: 1.42161308e-05 | I103: 18.5 | J103: 0.1115216904
A104: 19 | B104: 13.79315387 | C104: 19 | D104: 295.0695567 | E104: 19 | F104: 216.65 | G104: 19 | H104: 1.42161308e-05 | I104: 19 | J104: 0.1030665715
A105: 19.5 | B105: 14.9246823 | C105: 19.5 | D105: 295.0695567 | E105: 19.5 | F105: 216.65 | G105: 19.5 | H105: 1.42161308e-05 | I105: 19.5 | J105: 0.09525248516
A106: 20 | B106: 16.14903625 | C106: 20 | D106: 295.0695567 | E106: 20 | F106: 216.65 | G106: 20 | H106: 1.42161308e-05 | I106: 20 | J106: 0.08803083093

Sheet Lift Curve Slope
B2: Calculation of 2D lift curve slope
T12: Intermediate Values
T13: Reynolds number | U13: =Mac*c_g*SoSOUND*1/(kin_vis*10^-5) -> 6785094.558
T14: tan(0,5*phiTE)root | U14: =TAN(0.5*(fi_TE.r)*PI()/180) -> 0.1227845609
T15: tan(0,5*phiTE)tip | U15: =TAN(0.5*(fi_TE.t)*PI()/180) -> 0.1227845609
T16: cl/cltheoryroot | U16: =CLA(U13,U14) -> 0.8222552694
T17: cl/cltheorytip | U17: =CLA(U13,U15) -> 0.8222552694
T18: clalphroot | U18: =1.05/bet*U16*c_l.alp.r -> 10.10888535
T19: clalphtip | U19: =1.05/bet*U17*c_l.alp.t -> 10.10888535
A75: Plot Tables
A76: 10^6 | C76: 10^7 | E76: 10^8
A77: y | B77: x | C77: y | D77: x | E77: y | F77: x
A78: 0.9 | B78: 0 | C78: 0.95 | D78: 0 | E78: 0.965 | F78: 0
A79: 0.835 | B79: 0.06 | C79: 0.9 | D79: 0.071 | E79: 0.938 | F79: 0.06
A80: 0.75 | B80: 0.14 | C80: 0.835 | D80: 0.143 | E80: 0.878 | F80: 0.14
A81: 0.7 | B81: 0.188 | C81: 0.78 | D81: 0.2 | E81: 0.823 | F81: 0.2

Sheet Factors Diederich's Method
D2: Diederich Factors
O6: Intermediate Values
O7: F | P7: =F_ -> 5.29152397
O8: C1 | P8: =C_1 -> 0.2691650636
O9: C2 | P9: =C_2 -> 0.4948498441
O10: C3 | P10: =C_3 -> 0.2279890411
O11: C4 | P11: =C_4 -> 0.3817009716
A71: Plots for Diederich Factors
A72: Input | B72: x | C72: 6.5
A73: Output | B73: C1 | C73: =C_one(C72) -> 0.32500735
A74: Input | B74: x | C74: 6.5
A75: Output | B75: C2 | C75: =C_two(C74) -> 0.4029862937
A76: Input | B76: x | C76: 6.5
A77: Output | B77: C3 | C77: =C_three(C76) -> 0.2699284
A78: Input | B78: x | C78: 6.5
A79: Output | B79: C4 | C79: =C_four(C78) -> 0.4416213125

Sheet Sweep Correction Function
B2: The Sweep Correction Function
A61: Plot Parameters
A62: Input | B62: h | C62: 0.5
B63: L | C63: 30
A64: Output | B64: f | C64: =f(C63,C62) -> 1.26382275

Sheet Mason's Curve
B2: Mason's Curve
O8: Sweep Correction Function (Figure 1)
O32: Mason's Lift Distribution Curve (Figure 2)
B35: Scale from Mason to Diederich Graph (Figure 1 and 2 ) | H35: =1.275/0.71 -> 1.795774648
A67: Plots from Figure 2
A68: Spanwise station as input | B68: 0 | C68: 0.05 | D68: 0.1 | E68: 0.15 | F68: 0.2 | G68: 0.25 | H68: 0.3 | I68: 0.35 | J68: 0.4 | K68: 0.45 | L68: 0.5 | M68: 0.55 | N68: 0.6 | O68: 0.65 | P68: 0.7 | Q68: 0.75 | R68: 0.8 | S68: 0.85 | T68: 0.9 | U68: 0.95 | V68: 1
A69: Spanload calculated with CorelDRAW | B69: 70.86 | C69: 70.09 | D69: 69 | E69: 67.91 | F69: 66.045 | G69: 65.312 | H69: 60.606 | I69: 57.187 | J69: 54.079 | K69: 51.748 | L69: 48.019 | M69: 45.066 | N69: 41.492 | O69: 37.296 | P69: 34.343 | Q69: 30.303 | R69: 25.952 | S69: 22.222 | T69: 17.094 | U69: 11.344 | V69: 0
A70: Spanload converted to scale | B70: =B69*$A$72 -> 0.8 | C70: =C69*$A$72 -> 0.7913068021 | D70: =D69*$A$72 -> 0.7790008467 | E70: =E69*$A$72 -> 0.7666948913 | F70: =F69*$A$72 -> 0.7456392887 | G70: 0.715 | H70: =H69*$A$72 -> 0.6842337003 | I70: 0.6456336438 | J70: 0.6105447361 | K70: 0.5842280553 | L70: 0.54212814 | M70: 0.5087891617 | N70: 0.4684391758 | O70: 0.4210668925 | P70: 0.3877279142 | Q70: 0.3421168501 | R70: 0.2929946373 | S70: 0.2508834321 | T70: 0.1929889924 | U70: 0.1280722552 | V70: 0.05
A71: scale
A72: =0.8/70.86 -> 0.01128986734

Sheet Diederich's Method
B2: Diederich's Method
B6: Input | W6: How to use
B8: General Input
B9: Aspect Ratio | C9: A | D9: 8 | E9: -
B10: Taper Ratio | C10: λ | D10: 0.3 | E10: - | X10: Beside choosing rational values for the input, the following guidelines should be taken into account
B11: Quarter Chord Sweep | C11: j0.25 | D11: 20 | E11: deg
B12: Mach No | C12: M | D12: 0.8 | E12: -
B13: Aerodynamic twist at the tip | C13: et | D13: -3 | E13: deg | X13: ● | Y13: Only change blue values!
B14: Lift coefficient | C14: CL | D14: 1 | E14: -
X15: ● | Z15: A > | AA15: =4/(COS(phi_25*(PI()/180))) -> 4.25671109 | AC15: =IF(A_w>AA15, "correct data", "false data") -> correct data
B16: Additional Input
B17: Mean geometric chord | C17: cg | D17: 1 | E17: m | X17: ● | Y17: -35° | Z17: < j0.25 < | AA17: 35° | AC17: =IF(AND(-35<phi_25, phi_25<35), "correct data", "false data") -> correct data
B18: Flight altitude | C18: h | D18: 10 | E18: km
B19: Thickness ratio at the root | C19: (t/c)r | D19: 0.15 | E19: - | X19: ● | Z19: h < | AA19: 20 km | AC19: =IF(Altitude>20, "false data", "correct data") -> correct data
B20: Thickness ratio at the tip | C20: (t/c)t | D20: 0.15 | E20: -
B21: Airfoil trailing edge angle at the root | C21: fTE,r | D21: 14 | E21: deg | X21: ● | Z21: M < | AA21: 0.8 | AC21: =IF(Mac>0.8, "false data", "correct data") -> correct data
B22: Airfoil trailing edge angle at the tip | C22: fTE,t | D22: 14 | E22: deg
B23: Maximum section lift at the root | C23: clmax,r | D23: 1.6 | E23: -
B24: Maximum section lift at the tip | C24: clmax,t | D24: 1 | E24: -
X25: For further use the following statements might be helpful
B28: Output | X28: ● | Y28: Single curves can be hidden by first clicking the graph, then the following button:
B30: Diederichs Lift Distribution Compared | X30: ● | Y30: The general input is used for major changes in lift distributions while the additional input refines these results
B31: Error to elliptical lift distribution | C31: - | D31: =GM168 -> 0.08208512857 | E31: -
B32: Error to Mason's lift distribution | C32: - | D32: =GM171 -> 4.60009909 | E32: - | X32: ● | Y32: The additional output values are only representative for a correct additional input
B33: Error to triangular lift distribution | C33: - | D33: =GM174 -> 16.64492593 | E33: -
X34: ● | Y34: For detailled values scroll down to the plot tables after finishing the input data or use your cursor and point on a selected curve section
B35: Additional Output
B36: Root chord length | C36: cr | D36: =(2/(1+lam))*c_g -> 1.538461538 | E36: m
B37: Tip chord length | C37: ct | D37: =c_r*lam -> 0.4615384615 | E37: m
B38: Maximum lift coefficient of the wing | C38: Clmax | D38: =GM178*C_L -> 1.031148331 | E38: -
B39: Lift curve slope of the airfoil (mean value) | C39: cl,a | D39: =cl_alpha_mean -> 10.10888535 | E39: 1/rad
B40: Reynolds number | C40: Re | D40: =Rey_No -> 6785094.558 | E40: -
B41: Leading edge angle | C41: j0.0 | D41: =(LE_angle*(180/PI())) -> 23.32947022 | E41: deg
B42: Trailing edge angle | C42: j1.0 | D42: =(TE_angle*(180/PI())) -> 9.204605969 | E42: deg
B43: Wingspan | C43: b | D43: =A_w*c_r*(1+lam)*0.5 -> 8 | E43: m
B44: Wing surface area | C44: S | D44: =(b_wing/2)*c_r*(1+lam) -> 8 | E44: m²
B45: True airspeed | C45: VTAS | D45: =Mac*speedofsound_h -> 239.5866865 | E45: m/s
B46: True airspeed | C46: VTAS | D46: =Mac*speedofsound_h*3.6 -> 862.5120713 | E46: km/h
B48: Calculated Values
B49: 2pA/ cl,a cosj0.25 | C49: F | D49: =(2*PI()*A_w)/(c_l.alp*COS(phi_25*PI()/180)) -> 5.29152397 | E49: -
B50: Diederich's Factor | C50: C1 | D50: =C_one(D49) -> 0.2691650636 | E50: -
B51: Diederich's Factor | C51: C2 | D51: =C_two(D49) -> 0.4948498441 | E51: -
B52: Diederich's Factor | C52: C3 | D52: =C_three(D49) -> 0.2279890411 | E52: -
B53: Diederich's Factor | C53: C4 | D53: =C_four(D49) -> 0.3817009716 | E53: -
B54: Jone's edge velocity factor | C54: E | D54: =1+((2*lam)/(A_w*(1+lam))) -> 1.057692308 | E54: -
B55: Factor | C55: ao,1 | D55: =-((C_1*(1+(2*lam))/(3*(1+lam)))+((C_2+C_3)*4/(3*PI()))) -> -0.4172090438 | E55: -
B56: Prandtl's compressibility correction | C56: b | D56: =SQRT(1-POWER(Mac,2)) -> 0.6 | E56: -
B57: Effective sweep angle | C57: jb | D57: =ATAN(TAN(phi_25*PI()/180)/bet)*180/PI() -> 31.24171456 | E57: deg
B58: Theory lift curve slope of the airfoil at the root | C58: cl,a,r,theory | D58: =(2*PI())+(4.7*D19*(1+(0.00375*fi_TE.r))) -> 7.025197807 | E58: 1/rad
B59: Theory lift curve slope of the airfoil at the tip | C59: cl,a,t,theory | D59: =(2*PI())+(4.7*D20*(1+(0.00375*fi_TE.t))) -> 7.025197807 | E59: 1/rad
B60: Lift curve slope of the airfoil at the root | C60: cl,a,r | D60: =cl_alph_root -> 10.10888535 | E60: 1/rad
B61: Lift curve slope of the airfoil at the tip | C61: cl,a,t | D61: =cl_alpha_tip -> 10.10888535 | E61: 1/rad
B62: Kinematic viscosity in flight altitude | C62: ν | D62: =kin_vis -> 3.531073656 | E62: E-5*m²/s
B63: Speed of sound in flight altitude | C63: a | D63: =SoSOUND -> 299.4833581 | E63: m/s
B144: Plot Tables
B146: Diederichs sweep correction function | C146: f | D146: =f(phi_bet,D149) -> 0.8765070451 | E146: =f(phi_bet,E149) -> 0.882303867 | F146: 0.8893199143 | G146: 0.8974298258 | H146: 0.9065141659 | I146: 0.9164592828 | J146: 0.9271571656 | K146: 0.9385053029 | L146: 0.9504065409 | M146: 0.9627689414 | N146: 0.9755056403 | O146: 0.9885347063 | P146: 1.001778999 | Q146: 1.015166029 | R146: 1.028627814 | S146: 1.042100742 | T146: 1.055525426 | U146: 1.068846566 | V146: 1.082012809 | W146: 1.094976606 | X146: 1.107694074 | Y146: 1.120124852 | Z146: 1.132231967 | AA146: 1.143981689 | AB146: 1.155343393 | AC146: 1.16628942 | AD146: 1.176794935 | AE146: 1.18683779 | AF146: 1.196398383 | AG146: 1.205459521 | AH146: 1.214006278 | AI146: 1.222025858 | AJ146: =f(phi_bet,AJ149) -> 1.229507455 | AK146: 1.236442117 | AL146: 1.242822602 | AM146: 1.248643247 | AN146: 1.253899822 | AO146: 1.258589398 | AP146: 1.262710204 | AQ146: 1.266261494 | AR146: 1.269243404 | AS146: 1.271656818 | AT146: 1.27350323 | AU146: 1.274784606 | AV146: 1.275503245 | AW146: 1.275661645 | AX146: 1.275262363 | AY146: 1.274307881 | AZ146: 1.272800465 | BA146: 1.270742035 | BB146: 1.26813402 | BC146: 1.26497723 | BD146: 1.261271712 | BE146: 1.25701662 | BF146: 1.252210076 | BG146: 1.246849033 | BH146: 1.240929144 | BI146: 1.234444619 | BJ146: 1.227388097 | BK146: 1.219750505 | BL146: 1.211520926 | BM146: 1.202686463 | BN146: 1.193232102 | BO146: 1.18314058 | BP146: =f(phi_bet,BP149) -> 1.172392249 | BQ146: 1.160964941 | BR146: 1.148833834 | BS146: 1.135971318 | BT146: 1.122346859 | BU146: 1.107926867 | BV146: 1.09267456 | BW146: 1.076549832 | BX146: 1.059509118 | BY146: 1.04150526 | BZ146: 1.022487376 | CA146: 1.002400723 | CB146: 0.9811865668 | CC146: 0.9587820467 | CD146: 0.9351200438 | CE146: 0.9101290478 | CF146: 0.8837330242 | CG146: 0.8558512814 | CH146: 0.8263983388 | CI146: 0.7952837939 | CJ146: 0.7624121903 | CK146: 0.7276828854 | CL146: 0.6909899187 | CM146: 0.6522218797 | CN146: 0.6112617764 | CO146: 0.5679869032 | CP146: 0.5222687099 | CQ146: 0.5175573812 | CR146: 0.5128201412 | CS146: 0.5080568515 | CT146: 0.5032673729 | CU146: 0.4984515659 | CV146: =f(phi_bet,CV149) -> 0.49360929 | CW146: 0.4887404044 | CX146: 0.4838447674 | CY146: 0.478922237 | CZ146: 0.4739726704 | DA146: 0.4689959241 | DB146: 0.4639918541 | DC146: 0.4589603158 | DD146: 0.4539011639 | DE146: 0.4488142524 | DF146: 0.4436994348 | DG146: 0.438556564 | DH146: 0.4333854921 | DI146: 0.4281860708 | DJ146: 0.4229581508 | DK146: 0.4177015827 | DL146: 0.4124162159 | DM146: 0.4071018995 | DN146: 0.4017584819 | DO146: 0.3963858108 | DP146: 0.3909837334 | DQ146: 0.385552096 | DR146: 0.3800907445 | DS146: 0.3745995241 | DT146: 0.3690782792 | DU146: 0.3635268537 | DV146: 0.3579450909 | DW146: 0.3523328333 | DX146: 0.3466899228 | DY146: 0.3410162007 | DZ146: 0.3353115076 | EA146: 0.3295756834 | EB146: =f(phi_bet,EB149) -> 0.3238085674 | EC146: 0.3180099982 | ED146: 0.3121798139 | EE146: 0.3063178517 | EF146: 0.3004239482 | EG146: 0.2944979395 | EH146: 0.2885396608 | EI146: 0.2825489468 | EJ146: 0.2765256315 | EK146: 0.2704695481 | EL146: 0.2643805294 | EM146: 0.2582584073 | EN146: 0.2521030131 | EO146: 0.2459141773 | EP146: 0.23969173 | EQ146: 0.2334355004 | ER146: 0.2271453171 | ES146: 0.2208210079 | ET146: 0.2144624002 | EU146: 0.2080693204 | EV146: 0.2016415944 | EW146: 0.1951790474 | EX146: 0.1886815039 | EY146: 0.1821487876 | EZ146: 0.1755807217 | FA146: 0.1689771286 | FB146: 0.1623378299 | FC146: 0.1556626468 | FD146: 0.1489513996 | FE146: 0.1422039079 | FF146: 0.1354199907 | FG146: 0.1285994662 | FH146: =f(phi_bet,FH149) -> 0.1217421519 | FI146: 0.1148478647 | FJ146: 0.1079164208 | FK146: 0.1009476355 | FL146: 0.09394132369 | FM146: 0.08689729931 | FN146: 0.07981537569 | FO146: 0.07269536545 | FP146: 0.06553708049 | FQ146: 0.05834033201 | FR146: 0.05110493048 | FS146: 0.04383068567 | FT146: 0.03651740663 | FU146: 0.02916490168 | FV146: 0.02177297845 | FW146: 0.01434144383 | FX146: 0.00687010399 | FY146: -0.0006412356091 | FZ146: -0.00819277024 | GA146: -0.0157846959 | GB146: -0.0234172093 | GC146: -0.03109050789 | GD146: -0.03880478985 | GE146: -0.04656025408 | GF146: -0.05435710022 | GG146: -0.06219552863 | GH146: -0.07007574042 | GI146: -0.07799793742 | GJ146: -0.0859623222 | GK146: -0.09396909808 | GL146: -0.1020184691
B149: Non dimensional spanwise station | C149: h | D149: 0 | E149: 0.01 | F149: 0.02 | G149: 0.03 | H149: 0.04 | I149: 0.05 | J149: 0.06 | K149: 0.07 | L149: 0.08 | M149: 0.09 | N149: 0.1 | O149: 0.11 | P149: 0.12 | Q149: 0.13 | R149: 0.14 | S149: 0.15 | T149: 0.16 | U149: 0.17 | V149: 0.18 | W149: 0.19 | X149: 0.2 | Y149: 0.21 | Z149: 0.22 | AA149: 0.23 | AB149: 0.24 | AC149: 0.25 | AD149: 0.26 | AE149: 0.27 | AF149: 0.28 | AG149: 0.29 | AH149: 0.3 | AI149: 0.31 | AJ149: 0.32 | AK149: 0.33 | AL149: 0.34 | AM149: 0.35 | AN149: 0.36 | AO149: 0.37 | AP149: 0.38 | AQ149: 0.39 | AR149: 0.4 | AS149: 0.41 | AT149: 0.42 | AU149: 0.43 | AV149: 0.44 | AW149: 0.45 | AX149: 0.46 | AY149: 0.47 | AZ149: 0.48 | BA149: 0.49 | BB149: 0.5 | BC149: 0.51 | BD149: 0.52 | BE149: 0.53 | BF149: 0.54 | BG149: 0.55 | BH149: 0.56 | BI149: 0.57 | BJ149: 0.58 | BK149: 0.59 | BL149: 0.6 | BM149: 0.61 | BN149: 0.62 | BO149: 0.63 | BP149: 0.64 | BQ149: 0.65 | BR149: 0.66 | BS149: 0.67 | BT149: 0.68 | BU149: 0.69 | BV149: 0.7 | BW149: 0.71 | BX149: 0.72 | BY149: 0.73 | BZ149: 0.74 | CA149: 0.75 | CB149: 0.76 | CC149: 0.77 | CD149: 0.78 | CE149: 0.79 | CF149: 0.8 | CG149: 0.81 | CH149: 0.82 | CI149: 0.83 | CJ149: 0.84 | CK149: 0.85 | CL149: 0.86 | CM149: 0.87 | CN149: 0.88 | CO149: 0.89 | CP149: 0.9 | CQ149: 0.901 | CR149: 0.902 | CS149: 0.903 | CT149: 0.904 | CU149: 0.905 | CV149: 0.906 | CW149: 0.907 | CX149: 0.908 | CY149: 0.909 | CZ149: 0.91 | DA149: 0.911 | DB149: 0.912 | DC149: 0.913 | DD149: 0.914 | DE149: 0.915 | DF149: 0.916 | DG149: 0.917 | DH149: 0.918 | DI149: 0.919 | DJ149: 0.92 | DK149: 0.921 | DL149: 0.922 | DM149: 0.923 | DN149: 0.924 | DO149: 0.925 | DP149: 0.926 | DQ149: 0.927 | DR149: 0.928 | DS149: 0.929 | DT149: 0.93 | DU149: 0.931 | DV149: 0.932 | DW149: 0.933 | DX149: 0.934 | DY149: 0.935 | DZ149: 0.936 | EA149: 0.937 | EB149: 0.938 | EC149: 0.939 | ED149: 0.94 | EE149: 0.941 | EF149: 0.942 | EG149: 0.943 | EH149: 0.944 | EI149: 0.945 | EJ149: 0.946 | EK149: 0.947 | EL149: 0.948 | EM149: 0.949 | EN149: 0.95 | EO149: 0.951 | EP149: 0.952 | EQ149: 0.953 | ER149: 0.954 | ES149: 0.955 | ET149: 0.956 | EU149: 0.957 | EV149: 0.958 | EW149: 0.959 | EX149: 0.96 | EY149: 0.961 | EZ149: 0.962 | FA149: 0.963 | FB149: 0.964 | FC149: 0.965 | FD149: 0.966 | FE149: 0.967 | FF149: 0.968 | FG149: 0.969 | FH149: 0.97 | FI149: 0.971 | FJ149: 0.972 | FK149: 0.973 | FL149: 0.974 | FM149: 0.975 | FN149: 0.976 | FO149: 0.977 | FP149: 0.978 | FQ149: 0.979 | FR149: 0.98 | FS149: 0.981 | FT149: 0.982 | FU149: 0.983 | FV149: 0.984 | FW149: 0.985 | FX149: 0.986 | FY149: 0.987 | FZ149: 0.988 | GA149: 0.989 | GB149: 0.99 | GC149: 0.991 | GD149: 0.992 | GE149: 0.993 | GF149: 0.994 | GG149: 0.995 | GH149: 0.996 | GI149: 0.997 | GJ149: 0.998 | GK149: 0.999 | GL149: 1
B150: Chord | C150: c | D150: =c_r+((c_t-c_r)*D149) -> 1.538461538 | E150: 1.527692308 | F150: 1.516923077 | G150: 1.506153846 | H150: 1.495384615 | I150: 1.484615385 | J150: 1.473846154 | K150: 1.463076923 | L150: 1.452307692 | M150: 1.441538462 | N150: 1.430769231 | O150: 1.42 | P150: 1.409230769 | Q150: 1.398461538 | R150: 1.387692308 | S150: 1.376923077 | T150: 1.366153846 | U150: 1.355384615 | V150: 1.344615385 | W150: 1.333846154 | X150: 1.323076923 | Y150: 1.312307692 | Z150: 1.301538462 | AA150: 1.290769231 | AB150: 1.28 | AC150: 1.269230769 | AD150: 1.258461538 | AE150: 1.247692308 | AF150: 1.236923077 | AG150: 1.226153846 | AH150: 1.215384615 | AI150: 1.204615385 | AJ150: =c_r+((c_t-c_r)*AJ149) -> 1.193846154 | AK150: 1.183076923 | AL150: 1.172307692 | AM150: 1.161538462 | AN150: 1.150769231 | AO150: 1.14 | AP150: 1.129230769 | AQ150: 1.118461538 | AR150: 1.107692308 | AS150: 1.096923077 | AT150: 1.086153846 | AU150: 1.075384615 | AV150: 1.064615385 | AW150: 1.053846154 | AX150: 1.043076923 | AY150: 1.032307692 | AZ150: 1.021538462 | BA150: 1.010769231 | BB150: 1 | BC150: 0.9892307692 | BD150: 0.9784615385 | BE150: 0.9676923077 | BF150: 0.9569230769 | BG150: 0.9461538462 | BH150: 0.9353846154 | BI150: 0.9246153846 | BJ150: 0.9138461538 | BK150: 0.9030769231 | BL150: 0.8923076923 | BM150: 0.8815384615 | BN150: 0.8707692308 | BO150: 0.86 | BP150: =c_r+((c_t-c_r)*BP149) -> 0.8492307692 | BQ150: 0.8384615385 | BR150: 0.8276923077 | BS150: 0.8169230769 | BT150: 0.8061538462 | BU150: 0.7953846154 | BV150: 0.7846153846 | BW150: 0.7738461538 | BX150: 0.7630769231 | BY150: 0.7523076923 | BZ150: 0.7415384615 | CA150: 0.7307692308 | CB150: 0.72 | CC150: 0.7092307692 | CD150: 0.6984615385 | CE150: 0.6876923077 | CF150: 0.6769230769 | CG150: 0.6661538462 | CH150: 0.6553846154 | CI150: 0.6446153846 | CJ150: 0.6338461538 | CK150: 0.6230769231 | CL150: 0.6123076923 | CM150: 0.6015384615 | CN150: 0.5907692308 | CO150: 0.58 | CP150: 0.5692307692 | CQ150: 0.5681538462 | CR150: 0.5670769231 | CS150: 0.566 | CT150: 0.5649230769 | CU150: 0.5638461538 | CV150: =c_r+((c_t-c_r)*CV149) -> 0.5627692308 | CW150: 0.5616923077 | CX150: 0.5606153846 | CY150: 0.5595384615 | CZ150: 0.5584615385 | DA150: 0.5573846154 | DB150: 0.5563076923 | DC150: 0.5552307692 | DD150: 0.5541538462 | DE150: 0.5530769231 | DF150: 0.552 | DG150: 0.5509230769 | DH150: 0.5498461538 | DI150: 0.5487692308 | DJ150: 0.5476923077 | DK150: 0.5466153846 | DL150: 0.5455384615 | DM150: 0.5444615385 | DN150: 0.5433846154 | DO150: 0.5423076923 | DP150: 0.5412307692 | DQ150: 0.5401538462 | DR150: 0.5390769231 | DS150: 0.538 | DT150: 0.5369230769 | DU150: 0.5358461538 | DV150: 0.5347692308 | DW150: 0.5336923077 | DX150: 0.5326153846 | DY150: 0.5315384615 | DZ150: 0.5304615385 | EA150: 0.5293846154 | EB150: =c_r+((c_t-c_r)*EB149) -> 0.5283076923 | EC150: 0.5272307692 | ED150: 0.5261538462 | EE150: 0.5250769231 | EF150: 0.524 | EG150: 0.5229230769 | EH150: 0.5218461538 | EI150: 0.5207692308 | EJ150: 0.5196923077 | EK150: 0.5186153846 | EL150: 0.5175384615 | EM150: 0.5164615385 | EN150: 0.5153846154 | EO150: 0.5143076923 | EP150: 0.5132307692 | EQ150: 0.5121538462 | ER150: 0.5110769231 | ES150: 0.51 | ET150: 0.5089230769 | EU150: 0.5078461538 | EV150: 0.5067692308 | EW150: 0.5056923077 | EX150: 0.5046153846 | EY150: 0.5035384615 | EZ150: 0.5024615385 | FA150: 0.5013846154 | FB150: 0.5003076923 | FC150: 0.4992307692 | FD150: 0.4981538462 | FE150: 0.4970769231 | FF150: 0.496 | FG150: 0.4949230769 | FH150: =c_r+((c_t-c_r)*FH149) -> 0.4938461538 | FI150: 0.4927692308 | FJ150: 0.4916923077 | FK150: 0.4906153846 | FL150: 0.4895384615 | FM150: 0.4884615385 | FN150: 0.4873846154 | FO150: 0.4863076923 | FP150: 0.4852307692 | FQ150: 0.4841538462 | FR150: 0.4830769231 | FS150: 0.482 | FT150: 0.4809230769 | FU150: 0.4798461538 | FV150: 0.4787692308 | FW150: 0.4776923077 | FX150: 0.4766153846 | FY150: 0.4755384615 | FZ150: 0.4744615385 | GA150: 0.4733846154 | GB150: 0.4723076923 | GC150: 0.4712307692 | GD150: 0.4701538462 | GE150: 0.4690769231 | GF150: 0.468 | GG150: 0.4669230769 | GH150: 0.4658461538 | GI150: 0.4647692308 | GJ150: 0.4636923077 | GK150: 0.4626153846 | GL150: 0.4615384615
B151: Spanwise section lift gradient distribution | C151: cl,a | D151: =cl_alph_root+((cl_alpha_tip-cl_alph_root)*D149) -> 10.10888535 | E151: 10.10888535 | F151: 10.10888535 | G151: 10.10888535 | H151: 10.10888535 | I151: 10.10888535 | J151: 10.10888535 | K151: 10.10888535 | L151: 10.10888535 | M151: 10.10888535 | N151: 10.10888535 | O151: 10.10888535 | P151: 10.10888535 | Q151: 10.10888535 | R151: 10.10888535 | S151: 10.10888535 | T151: 10.10888535 | U151: 10.10888535 | V151: 10.10888535 | W151: 10.10888535 | X151: 10.10888535 | Y151: 10.10888535 | Z151: 10.10888535 | AA151: 10.10888535 | AB151: 10.10888535 | AC151: 10.10888535 | AD151: 10.10888535 | AE151: 10.10888535 | AF151: 10.10888535 | AG151: 10.10888535 | AH151: 10.10888535 | AI151: 10.10888535 | AJ151: =cl_alph_root+((cl_alpha_tip-cl_alph_root)*AJ149) -> 10.10888535 | AK151: 10.10888535 | AL151: 10.10888535 | AM151: 10.10888535 | AN151: 10.10888535 | AO151: 10.10888535 | AP151: 10.10888535 | AQ151: 10.10888535 | AR151: 10.10888535 | AS151: 10.10888535 | AT151: 10.10888535 | AU151: 10.10888535 | AV151: 10.10888535 | AW151: 10.10888535 | AX151: 10.10888535 | AY151: 10.10888535 | AZ151: 10.10888535 | BA151: 10.10888535 | BB151: 10.10888535 | BC151: 10.10888535 | BD151: 10.10888535 | BE151: 10.10888535 | BF151: 10.10888535 | BG151: 10.10888535 | BH151: 10.10888535 | BI151: 10.10888535 | BJ151: 10.10888535 | BK151: 10.10888535 | BL151: 10.10888535 | BM151: 10.10888535 | BN151: 10.10888535 | BO151: 10.10888535 | BP151: =cl_alph_root+((cl_alpha_tip-cl_alph_root)*BP149) -> 10.10888535 | BQ151: 10.10888535 | BR151: 10.10888535 | BS151: 10.10888535 | BT151: 10.10888535 | BU151: 10.10888535 | BV151: 10.10888535 | BW151: 10.10888535 | BX151: 10.10888535 | BY151: 10.10888535 | BZ151: 10.10888535 | CA151: 10.10888535 | CB151: 10.10888535 | CC151: 10.10888535 | CD151: 10.10888535 | CE151: 10.10888535 | CF151: 10.10888535 | CG151: 10.10888535 | CH151: 10.10888535 | CI151: 10.10888535 | CJ151: 10.10888535 | CK151: 10.10888535 | CL151: 10.10888535 | CM151: 10.10888535 | CN151: 10.10888535 | CO151: 10.10888535 | CP151: 10.10888535 | CQ151: 10.10888535 | CR151: 10.10888535 | CS151: 10.10888535 | CT151: 10.10888535 | CU151: 10.10888535 | CV151: =cl_alph_root+((cl_alpha_tip-cl_alph_root)*CV149) -> 10.10888535 | CW151: 10.10888535 | CX151: 10.10888535 | CY151: 10.10888535 | CZ151: 10.10888535 | DA151: 10.10888535 | DB151: 10.10888535 | DC151: 10.10888535 | DD151: 10.10888535 | DE151: 10.10888535 | DF151: 10.10888535 | DG151: 10.10888535 | DH151: 10.10888535 | DI151: 10.10888535 | DJ151: 10.10888535 | DK151: 10.10888535 | DL151: 10.10888535 | DM151: 10.10888535 | DN151: 10.10888535 | DO151: 10.10888535 | DP151: 10.10888535 | DQ151: 10.10888535 | DR151: 10.10888535 | DS151: 10.10888535 | DT151: 10.10888535 | DU151: 10.10888535 | DV151: 10.10888535 | DW151: 10.10888535 | DX151: 10.10888535 | DY151: 10.10888535 | DZ151: 10.10888535 | EA151: 10.10888535 | EB151: =cl_alph_root+((cl_alpha_tip-cl_alph_root)*EB149) -> 10.10888535 | EC151: 10.10888535 | ED151: 10.10888535 | EE151: 10.10888535 | EF151: 10.10888535 | EG151: 10.10888535 | EH151: 10.10888535 | EI151: 10.10888535 | EJ151: 10.10888535 | EK151: 10.10888535 | EL151: 10.10888535 | EM151: 10.10888535 | EN151: 10.10888535 | EO151: 10.10888535 | EP151: 10.10888535 | EQ151: 10.10888535 | ER151: 10.10888535 | ES151: 10.10888535 | ET151: 10.10888535 | EU151: 10.10888535 | EV151: 10.10888535 | EW151: 10.10888535 | EX151: 10.10888535 | EY151: 10.10888535 | EZ151: 10.10888535 | FA151: 10.10888535 | FB151: 10.10888535 | FC151: 10.10888535 | FD151: 10.10888535 | FE151: 10.10888535 | FF151: 10.10888535 | FG151: 10.10888535 | FH151: =cl_alph_root+((cl_alpha_tip-cl_alph_root)*FH149) -> 10.10888535 | FI151: 10.10888535 | FJ151: 10.10888535 | FK151: 10.10888535 | FL151: 10.10888535 | FM151: 10.10888535 | FN151: 10.10888535 | FO151: 10.10888535 | FP151: 10.10888535 | FQ151: 10.10888535 | FR151: 10.10888535 | FS151: 10.10888535 | FT151: 10.10888535 | FU151: 10.10888535 | FV151: 10.10888535 | FW151: 10.10888535 | FX151: 10.10888535 | FY151: 10.10888535 | FZ151: 10.10888535 | GA151: 10.10888535 | GB151: 10.10888535 | GC151: 10.10888535 | GD151: 10.10888535 | GE151: 10.10888535 | GF151: 10.10888535 | GG151: 10.10888535 | GH151: 10.10888535 | GI151: 10.10888535 | GJ151: 10.10888535 | GK151: 10.10888535 | GL151: 10.10888535 | GM151: =AVERAGE(D151:GL151) -> 10.10888535
B153: Anderson's lift function | C153: La | D153: =(C_1*D150/c_g)+(C_2*(4/PI())*SQRT(1-POWER(D149,2)))+(C_3*D146) -> 1.243996489 | E153: =(C_1*E150/c_g)+(C_2*(4/PI())*SQRT(1-POWER(E149,2)))+(C_3*E146) -> 1.242387896 | F153: 1.240994256 | G153: 1.239786959 | H153: 1.238738729 | I153: 1.237823587 | J153: 1.237016822 | K153: 1.236294959 | L153: 1.235635723 | M153: 1.235018009 | N153: 1.234421849 | O153: 1.233828382 | P153: 1.233219814 | Q153: 1.232579395 | R153: 1.23189138 | S153: 1.231140999 | T153: 1.230314422 | U153: 1.229398731 | V153: 1.228381884 | W153: 1.227252682 | X153: 1.226000739 | Y153: 1.224616446 | Z153: 1.223090944 | AA153: 1.221416084 | AB153: 1.2195844 | AC153: 1.217589073 | AD153: 1.215423902 | AE153: 1.213083265 | AF153: 1.210562093 | AG153: 1.207855834 | AH153: 1.204960418 | AI153: 1.201872227 | AJ153: =(C_1*AJ150/c_g)+(C_2*(4/PI())*SQRT(1-POWER(AJ149,2)))+(C_3*AJ146) -> 1.198588063 | AK153: 1.19510511 | AL153: 1.191420906 | AM153: 1.187533305 | AN153: 1.183440449 | AO153: 1.17914073 | AP153: 1.174632757 | AQ153: 1.169915324 | AR153: 1.164987376 | AS153: 1.159847972 | AT153: 1.154496256 | AU153: 1.148931415 | AV153: 1.143152653 | AW153: 1.137159148 | AX153: 1.130950024 | AY153: 1.124524309 | AZ153: 1.117880903 | BA153: 1.111018542 | BB153: 1.103935759 | BC153: 1.096630848 | BD153: 1.089101826 | BE153: 1.081346396 | BF153: 1.073361907 | BG153: 1.065145314 | BH153: 1.056693137 | BI153: 1.048001422 | BJ153: 1.039065696 | BK153: 1.029880924 | BL153: 1.020441463 | BM153: 1.010741018 | BN153: 1.00077259 | BO153: 0.9905284264 | BP153: =(C_1*BP150/c_g)+(C_2*(4/PI())*SQRT(1-POWER(BP149,2)))+(C_3*BP146) -> 0.97999997 | BQ153: 0.9691778002 | BR153: 0.9580515758 | BS153: 0.9466099714 | BT153: 0.9348406108 | BU153: 0.9227299945 | BV153: 0.9102634215 | BW153: 0.897424904 | BX153: 0.8841970731 | BY153: 0.8705610751 | BZ153: 0.856496455 | CA153: 0.8419810248 | CB153: 0.8269907147 | CC153: 0.8114994002 | CD153: 0.7954787027 | CE153: 0.7788977551 | CF153: 0.7617229219 | CG153: 0.743917465 | CH153: 0.7254411345 | CI153: 0.7062496657 | CJ153: 0.6862941477 | CK153: 0.6655202221 | CL153: 0.6438670459 | CM153: 0.6212659253 | CN153: 0.5976384781 | CO153: 0.5728941042 | CP153: 0.5469264073 | CQ153: 0.5442576679 | CR153: 0.5415753036 | CS153: 0.5388791706 | CT153: 0.5361691221 | CU153: 0.5334450081 | CV153: =(C_1*CV150/c_g)+(C_2*(4/PI())*SQRT(1-POWER(CV149,2)))+(C_3*CV146) -> 0.5307066754 | CW153: 0.5279539675 | CX153: 0.5251867244 | CY153: 0.5224047825 | CZ153: 0.5196079744 | DA153: 0.516796129 | DB153: 0.513969071 | DC153: 0.5111266211 | DD153: 0.5082685955 | DE153: 0.5053948062 | DF153: 0.5025050601 | DG153: 0.4995991595 | DH153: 0.4966769016 | DI153: 0.4937380783 | DJ153: 0.490782476 | DK153: 0.4878098753 | DL153: 0.4848200509 | DM153: 0.4818127713 | DN153: 0.4787877983 | DO153: 0.475744887 | DP153: 0.4726837854 | DQ153: 0.469604234 | DR153: 0.4665059654 | DS153: 0.4633887042 | DT153: 0.4602521662 | DU153: 0.4570960584 | DV153: 0.4539200782 | DW153: 0.4507239131 | DX153: 0.4475072403 | DY153: 0.4442697258 | DZ153: 0.4410110242 | EA153: 0.4377307776 | EB153: =(C_1*EB150/c_g)+(C_2*(4/PI())*SQRT(1-POWER(EB149,2)))+(C_3*EB146) -> 0.4344286157 | EC153: 0.4311041541 | ED153: 0.4277569944 | EE153: 0.4243867228 | EF153: 0.4209929096 | EG153: 0.4175751079 | EH153: 0.4141328526 | EI153: 0.4106656597 | EJ153: 0.4071730244 | EK153: 0.4036544205 | EL153: 0.4001092982 | EM153: 0.3965370834 | EN153: 0.3929371753 | EO153: 0.3893089448 | EP153: 0.3856517326 | EQ153: 0.381964847 | ER153: 0.3782475612 | ES153: 0.3744991109 | ET153: 0.3707186913 | EU153: 0.3669054539 | EV153: 0.3630585029 | EW153: 0.3591768913 | EX153: 0.3552596165 | EY153: 0.3513056154 | EZ153: 0.347313759 | FA153: 0.3432828463 | FB153: 0.3392115974 | FC153: 0.3350986461 | FD153: 0.3309425306 | FE153: 0.3267416845 | FF153: 0.3224944246 | FG153: 0.318198939 | FH153: =(C_1*FH150/c_g)+(C_2*(4/PI())*SQRT(1-POWER(FH149,2)))+(C_3*FH146) -> 0.3138532721 | FI153: 0.3094553075 | FJ153: 0.3050027487 | FK153: 0.3004930967 | FL153: 0.295923623 | FM153: 0.2912913385 | FN153: 0.2865929572 | FO153: 0.281824852 | FP153: 0.2769830024 | FQ153: 0.2720629312 | FR153: 0.2670596274 | FS153: 0.2619674519 | FT153: 0.2567800198 | FU153: 0.2514900536 | FV153: 0.2460891964 | FW153: 0.2405677718 | FX153: 0.2349144703 | FY153: 0.2291159328 | FZ153: 0.223156187 | GA153: 0.2170158663 | GB153: 0.2106711008 | GC153: 0.2040918941 | GD153: 0.1972396576 | GE153: 0.1900633027 | GF153: 0.1824926958 | GG153: 0.1744269127 | GH153: 0.1657111194 | GI153: 0.1560847704 | GJ153: 0.1450400172 | GK153: 0.1312661764 | GL153: 0.1009709364
B155: Anderson's lift function | C155: Lb | D155: =(bet*JF*(D153*C_4*COS(phi_bet*PI()/180)*(D149+Alp_o.1))) -> -0.1074895342 | E155: -0.1047774775 | F155: -0.1020897668 | G155: -0.09942277226 | H155: -0.0967732051 | I155: -0.09413810138 | J155: -0.09151480609 | K155: -0.0889009577 | L155: -0.08629447312 | M155: -0.08369353302 | N155: -0.08109656763 | O155: -0.07850224285 | P155: -0.07590944685 | Q155: -0.073317277 | R155: -0.07072502726 | S155: -0.06813217597 | T155: -0.06553837397 | U155: -0.06294343323 | V155: -0.06034731584 | W155: -0.05775012335 | X155: -0.05515208659 | Y155: -0.05255355588 | Z155: -0.0499549916 | AA155: -0.04735695523 | AB155: -0.04476010071 | AC155: -0.04216516632 | AD155: -0.03957296684 | AE155: -0.03698438621 | AF155: -0.03440037055 | AG155: -0.03182192162 | AH155: -0.02925009063 | AI155: -0.02668597252 | AJ155: =(bet*JF*(AJ153*C_4*COS(phi_bet*PI()/180)*(AJ149+Alp_o.1))) -> -0.02413070062 | AK155: -0.02158544172 | AL155: -0.01905139154 | AM155: -0.01652977064 | AN155: -0.01402182073 | AO155: -0.01152880138 | AP155: -0.009051987167 | AQ155: -0.006592665203 | AR155: -0.004152133141 | AS155: -0.00173169755 | AT155: 0.0006673272605 | AU155: 0.003043620002 | AV155: 0.00539585273 | AW155: 0.007722690735 | AX155: 0.01002279201 | AY155: 0.01229480624 | AZ155: 0.01453737342 | BA155: 0.01674912192 | BB155: 0.01892866619 | BC155: 0.0210746039 | BD155: 0.02318551275 | BE155: 0.02525994661 | BF155: 0.02729643134 | BG155: 0.02929346002 | BH155: 0.03124948765 | BI155: 0.03316292535 | BJ155: 0.03503213403 | BK155: 0.03685541742 | BL155: 0.03863101455 | BM155: 0.04035709159 | BN155: 0.04203173307 | BO155: 0.04365293232 | BP155: =(bet*JF*(BP153*C_4*COS(phi_bet*PI()/180)*(BP149+Alp_o.1))) -> 0.04521858127 | BQ155: 0.04672645939 | BR155: 0.04817422176 | BS155: 0.04955938632 | BT155: 0.05087931997 | BU155: 0.05213122361 | BV155: 0.05331211596 | BW155: 0.0544188159 | BX155: 0.05544792327 | BY155: 0.05639579784 | BZ155: 0.05725853612 | CA155: 0.05803194575 | CB155: 0.05871151692 | CC155: 0.05929239034 | CD155: 0.05976932092 | CE155: 0.0601366363 | CF155: 0.06038818901 | CG155: 0.06051730048 | CH155: 0.06051669487 | CI155: 0.06037841964 | CJ155: 0.06009374874 | CK155: 0.05965306265 | CL155: 0.05904569683 | CM155: 0.05825974652 | CN155: 0.05728180929 | CO155: 0.05609663698 | CP155: 0.05468665143 | CQ155: 0.05453252591 | CR155: 0.05437592698 | CS155: 0.05421683171 | CT155: 0.05405521673 | CU155: 0.05389105826 | CV155: =(bet*JF*(CV153*C_4*COS(phi_bet*PI()/180)*(CV149+Alp_o.1))) -> 0.05372433205 | CW155: 0.05355501338 | CX155: 0.05338307706 | CY155: 0.05320849739 | CZ155: 0.05303124816 | DA155: 0.05285130264 | DB155: 0.05266863351 | DC155: 0.05248321292 | DD155: 0.0522950124 | DE155: 0.05210400286 | DF155: 0.05191015459 | DG155: 0.05171343721 | DH155: 0.05151381963 | DI155: 0.05131127007 | DJ155: 0.05110575599 | DK155: 0.05089724409 | DL155: 0.05068570024 | DM155: 0.05047108949 | DN155: 0.05025337599 | DO155: 0.050032523 | DP155: 0.04980849282 | DQ155: 0.04958124674 | DR155: 0.04935074502 | DS155: 0.04911694683 | DT155: 0.04887981019 | DU155: 0.04863929195 | DV155: 0.04839534769 | DW155: 0.04814793168 | DX155: 0.04789699682 | DY155: 0.04764249455 | DZ155: 0.04738437482 | EA155: 0.04712258594 | EB155: =(bet*JF*(EB153*C_4*COS(phi_bet*PI()/180)*(EB149+Alp_o.1))) -> 0.04685707456 | EC155: 0.04658778555 | ED155: 0.04631466191 | EE155: 0.04603764464 | EF155: 0.04575667269 | EG155: 0.04547168275 | EH155: 0.0451826092 | EI155: 0.0448893839 | EJ155: 0.04459193612 | EK155: 0.04429019228 | EL155: 0.04398407582 | EM155: 0.04367350704 | EN155: 0.04335840279 | EO155: 0.04303867634 | EP155: 0.04271423706 | EQ155: 0.04238499019 | ER155: 0.04205083648 | ES155: 0.04171167193 | ET155: 0.04136738737 | EU155: 0.04101786807 | EV155: 0.04066299332 | EW155: 0.0403026359 | EX155: 0.03993666157 | EY155: 0.03956492845 | EZ155: 0.03918728634 | FA155: 0.03880357595 | FB155: 0.03841362809 | FC155: 0.03801726268 | FD155: 0.03761428768 | FE155: 0.03720449789 | FF155: 0.03678767354 | FG155: 0.03636357873 | FH155: =(bet*JF*(FH153*C_4*COS(phi_bet*PI()/180)*(FH149+Alp_o.1))) -> 0.03593195958 | FI155: 0.03549254219 | FJ155: 0.03504503021 | FK155: 0.03458910203 | FL155: 0.03412440757 | FM155: 0.03365056435 | FN155: 0.03316715305 | FO155: 0.03267371209 | FP155: 0.03216973121 | FQ155: 0.03165464365 | FR155: 0.03112781675 | FS155: 0.03058854034 | FT155: 0.03003601236 | FU155: 0.02946932085 | FV155: 0.02888742112 | FW155: 0.02828910639 | FX155: 0.02767296949 | FY155: 0.02703735202 | FZ155: 0.02638027558 | GA155: 0.02569934657 | GB155: 0.02499162118 | GC155: 0.02425340771 | GD155: 0.02347996681 | GE155: 0.02266503653 | GF155: 0.02180003753 | GG155: 0.02087264786 | GH155: 0.01986399971 | GI155: 0.01874240332 | GJ155: 0.01744620616 | GK155: 0.01581659934 | GL155: 0.01218715964
B157: Additional lift coefficient | C157: cl,a | D157: =D153*C_L*c_g/D150 -> 0.8085977177 | E157: 0.8132448463 | F157: 0.8180996617 | G157: 0.8231476238 | H157: 0.8283746645 | I157: 0.8337671828 | J157: 0.8393120401 | K157: 0.8449965544 | L157: 0.8508084954 | M157: 0.8567360785 | N157: 0.8627679592 | O157: 0.8688932264 | P157: 0.8751013965 | Q157: 0.8813824058 | R157: 0.8877266043 | S157: 0.8941247476 | T157: 0.9005679891 | U157: 0.9070478721 | V157: 0.913556321 | W157: 0.9200856323 | X157: 0.9266284652 | Y157: 0.9331778314 | Z157: 0.9397270847 | AA157: 0.9462699102 | AB157: 0.9528003124 | AC157: 0.9593126032 | AD157: 0.9658013888 | AE157: 0.9722615564 | AF157: 0.9786882596 | AG157: 0.9850769034 | AH157: 0.9914231285 | AI157: 0.9977227941 | AJ157: =AJ153*C_L*c_g/AJ150 -> 1.00397196 | AK157: 1.010166868 | AL157: 1.016303922 | AM157: 1.022379667 | AN157: 1.028390765 | AO157: 1.034333974 | AP157: 1.04020612 | AQ157: 1.046004073 | AR157: 1.051724714 | AS157: 1.057364912 | AT157: 1.062921482 | AU157: 1.068391159 | AV157: 1.073770555 | AW157: 1.079056126 | AX157: 1.084244123 | AY157: 1.089330552 | AZ157: 1.094311125 | BA157: 1.099181206 | BB157: 1.103935759 | BC157: 1.108569286 | BD157: 1.113075765 | BE157: 1.117448581 | BF157: 1.12168045 | BG157: 1.12576334 | BH157: 1.129688387 | BI157: 1.133445798 | BJ157: 1.137024752 | BK157: 1.140413289 | BL157: 1.143598191 | BM157: 1.146564855 | BN157: 1.149297144 | BO157: 1.15177724 | BP157: =BP153*C_L*c_g/BP150 -> 1.153985472 | BQ157: 1.155900129 | BR157: 1.157497257 | BS157: 1.158750436 | BT157: 1.159630529 | BU157: 1.160105409 | BV157: 1.160139655 | BW157: 1.15969421 | BX157: 1.158726003 | BY157: 1.157187523 | BZ157: 1.15502634 | CA157: 1.15218456 | CB157: 1.148598215 | CC157: 1.144196551 | CD157: 1.138901226 | CE157: 1.132625371 | CF157: 1.125272498 | CG157: 1.116735225 | CH157: 1.10689375 | CI157: 1.09561404 | CJ157: 1.082745621 | CK157: 1.068118875 | CL157: 1.051541658 | CM157: 1.032795016 | CN157: 1.011627632 | CO157: 0.9877484556 | CP157: 0.9608166614 | CQ157: 0.9579406556 | CR157: 0.9550296998 | CS157: 0.9520833403 | CT157: 0.9491011148 | CU157: 0.9460825519 | CV157: =CV153*C_L*c_g/CV150 -> 0.9430271707 | CW157: 0.9399344807 | CX157: 0.9368039815 | CY157: 0.9336351625 | CZ157: 0.9304275023 | DA157: 0.9271804687 | DB157: 0.9238935181 | DC157: 0.920566095 | DD157: 0.9171976321 | DE157: 0.9137875494 | DF157: 0.9103352537 | DG157: 0.9068401387 | DH157: 0.9033015838 | DI157: 0.899718954 | DJ157: 0.8960915994 | DK157: 0.8924188544 | DL157: 0.888700037 | DM157: 0.8849344486 | DN157: 0.8811213729 | DO157: 0.8772600754 | DP157: 0.8733498025 | DQ157: 0.869389781 | DR157: 0.8653792166 | DS157: 0.861317294 | DT157: 0.8572031748 | DU157: 0.8530359975 | DV157: 0.8488148757 | DW157: 0.8445388975 | DX157: 0.8402071237 | DY157: 0.8358185869 | DZ157: 0.8313722903 | EA157: 0.8268672056 | EB157: =EB153*C_L*c_g/EB150 -> 0.8223022719 | EC157: 0.8176763938 | ED157: 0.8129884396 | EE157: 0.8082372395 | EF157: 0.8034215833 | EG157: 0.7985402181 | EH157: 0.7935918462 | EI157: 0.788575122 | EJ157: 0.7834886497 | EK157: 0.7783309798 | EL157: 0.7731006059 | EM157: 0.7677959613 | EN157: 0.7624154147 | EO157: 0.7569572662 | EP157: 0.7514197429 | EQ157: 0.745800993 | ER157: 0.7400990813 | ES157: 0.7343119822 | ET157: 0.7284375737 | EU157: 0.7224736294 | EV157: 0.7164178109 | EW157: 0.7102676585 | EX157: 0.7040205815 | EY157: 0.6976738466 | EZ157: 0.6912245662 | FA157: 0.6846696842 | FB157: 0.6780059604 | FC157: 0.6712299536 | FD157: 0.6643380016 | FE157: 0.657326199 | FF157: 0.6501903721 | FG157: 0.6429260502 | FH157: =FH153*C_L*c_g/FH150 -> 0.6355284326 | FI157: 0.6279923504 | FJ157: 0.6203122237 | FK157: 0.6124820096 | FL157: 0.6044951443 | FM157: 0.5963444725 | FN157: 0.588022166 | FO157: 0.5795196261 | FP157: 0.570827367 | FQ157: 0.5619348753 | FR157: 0.5528304389 | FS157: 0.5435009375 | FT157: 0.533931583 | FU157: 0.5241055943 | FV157: 0.5140037843 | FW157: 0.5036040312 | FX157: 0.4928805865 | FY157: 0.4818031587 | FZ157: 0.470335673 | GA157: 0.4584345566 | GB157: 0.4460463047 | GC157: 0.4331039215 | GD157: 0.4195215231 | GE157: 0.405185788 | GF157: 0.3899416576 | GG157: 0.3735666994 | GH157: 0.3557206989 | GI157: 0.3358328394 | GJ157: 0.3127936668 | GK157: 0.2837479702 | GL157: 0.2187703622
B159: Basic lift coefficient | C159: cl,b | D159: =(D155*c_g*Eps_t.rad*D151)/(D150*JF) -> 0.03496407838 | E159: 0.03432215866 | F159: 0.03367915612 | G159: 0.03303384153 | H159: 0.03238506435 | I159: 0.03173175014 | J159: 0.03107289797 | K159: 0.03040757781 | L159: 0.02973492801 | M159: 0.02905415271 | N159: 0.02836451937 | O159: 0.02766535632 | P159: 0.02695605025 | Q159: 0.02623604384 | R159: 0.02550483335 | S159: 0.02476196631 | T159: 0.02400703914 | U159: 0.02323969497 | V159: 0.02245962133 | W159: 0.02166654798 | X159: 0.02086024481 | Y159: 0.0200405197 | Z159: 0.01920721649 | AA159: 0.01836021301 | AB159: 0.01749941913 | AC159: 0.01662477489 | AD159: 0.01573624874 | AE159: 0.01483383574 | AF159: 0.01391755596 | AG159: 0.01298745287 | AH159: 0.01204359185 | AI159: 0.01108605877 | AJ159: =(AJ155*c_g*Eps_t.rad*AJ151)/(AJ150*JF) -> 0.01011495872 | AK159: 0.009130414728 | AL159: 0.008132566729 | AM159: 0.007121570535 | AN159: 0.006097596985 | AO159: 0.005060831218 | AP159: 0.00401147208 | AQ159: 0.002949731695 | AR159: 0.00187583519 | AS159: 0.0007900206022 | AT159: -0.0003074610241 | AU159: -0.00141634534 | AV159: -0.002536354172 | AW159: -0.003667194766 | AX159: -0.00480855877 | AY159: -0.005960120949 | AZ159: -0.007121537593 | BA159: -0.008292444598 | BB159: -0.0094724552 | BC159: -0.01066115732 | BD159: -0.01185811051 | BE159: -0.01306284239 | BF159: -0.01427484469 | BG159: -0.01549356863 | BH159: -0.0167184198 | BI159: -0.01794875236 | BJ159: -0.0191838625 | BK159: -0.02042298119 | BL159: -0.02166526595 | BM159: -0.02290979181 | BN159: -0.0241555411 | BO159: -0.0254013921 | BP159: =(BP155*c_g*Eps_t.rad*BP151)/(BP150*JF) -> -0.02664610647 | BQ159: -0.02788831508 | BR159: -0.02912650238 | BS159: -0.03035898889 | BT159: -0.03158391159 | BU159: -0.03279920218 | BV159: -0.03400256255 | BW159: -0.03519143747 | BX159: -0.03636298381 | BY159: -0.03751403594 | BZ159: -0.03864106668 | CA159: -0.03974014312 | CB159: -0.04080687639 | CC159: -0.04183636448 | CD159: -0.04282312661 | CE159: -0.0437610278 | CF159: -0.04464319141 | CG159: -0.04546189713 | CH159: -0.04620846118 | CI159: -0.04687309415 | CJ159: -0.0474447306 | CK159: -0.04791082251 | CL159: -0.04825708499 | CM159: -0.04846717844 | CN159: -0.04852230316 | CO159: -0.04840067071 | CP159: -0.0480767954 | CQ159: -0.04803217037 | CR159: -0.04798519313 | CS159: -0.04793582998 | CT159: -0.04788404659 | CU159: -0.04782980797 | CV159: =(CV155*c_g*Eps_t.rad*CV151)/(CV150*JF) -> -0.04777307846 | CW159: -0.04771382171 | CX159: -0.04765200068 | CY159: -0.04758757757 | CZ159: -0.04752051385 | DA159: -0.0474507702 | DB159: -0.0473783065 | DC159: -0.04730308181 | DD159: -0.04722505431 | DE159: -0.04714418133 | DF159: -0.04706041927 | DG159: -0.04697372359 | DH159: -0.04688404877 | DI159: -0.04679134828 | DJ159: -0.04669557454 | DK159: -0.0465966789 | DL159: -0.04649461156 | DM159: -0.04638932158 | DN159: -0.04628075679 | DO159: -0.04616886378 | DP159: -0.0460535878 | DQ159: -0.04593487277 | DR159: -0.04581266119 | DS159: -0.04568689408 | DT159: -0.04555751093 | DU159: -0.04542444963 | DV159: -0.04528764638 | DW159: -0.04514703566 | DX159: -0.04500255013 | DY159: -0.04485412051 | DZ159: -0.04470167555 | EA159: -0.0445451419 | EB159: =(EB155*c_g*Eps_t.rad*EB151)/(EB150*JF) -> -0.04438444402 | EC159: -0.04421950406 | ED159: -0.04405024176 | EE159: -0.0438765743 | EF159: -0.0436984162 | EG159: -0.04351567914 | EH159: -0.04332827185 | EI159: -0.04313609988 | EJ159: -0.04293906547 | EK159: -0.04273706737 | EL159: -0.04253000055 | EM159: -0.04231775605 | EN159: -0.04210022072 | EO159: -0.04187727691 | EP159: -0.04164880221 | EQ159: -0.04141466913 | ER159: -0.04117474473 | ES159: -0.04092889027 | ET159: -0.04067696076 | EU159: -0.04041880449 | EV159: -0.04015426257 | EW159: -0.03988316831 | EX159: -0.03960534662 | EY159: -0.03932061335 | EZ159: -0.03902877445 | FA159: -0.03872962516 | FB159: -0.03842294903 | FC159: -0.03810851684 | FD159: -0.03778608538 | FE159: -0.03745539608 | FF159: -0.0371161734 | FG159: -0.03676812311 | FH159: =(FH155*c_g*Eps_t.rad*FH151)/(FH150*JF) -> -0.03641093021 | FI159: -0.0360442566 | FJ159: -0.03566773836 | FK159: -0.03528098263 | FL159: -0.03488356396 | FM159: -0.03447501999 | FN159: -0.03405484643 | FO159: -0.03362249102 | FP159: -0.03317734642 | FQ159: -0.03271874147 | FR159: -0.03224593077 | FS159: -0.03175808177 | FT159: -0.03125425886 | FU159: -0.03073340341 | FV159: -0.03019430853 | FW159: -0.02963558665 | FX159: -0.02905562723 | FY159: -0.02845254079 | FZ159: -0.02782408317 | GA159: -0.02716755088 | GB159: -0.02647963278 | GC159: -0.02575619325 | GD159: -0.02499194365 | GE159: -0.02417992242 | GF159: -0.02331062596 | GG159: -0.02237045179 | GH159: -0.02133863985 | GI159: -0.02018043197 | GJ159: -0.01882841042 | GK159: -0.0171094319 | GL159: -0.01321408663
B161: Spanwise lift coefficient | C161: cl | D161: =D157+D159 -> 0.8435617961 | E161: =E157+E159 -> 0.847567005 | F161: =F157+F159 -> 0.8517788178 | G161: =G157+G159 -> 0.8561814653 | H161: =H157+H159 -> 0.8607597288 | I161: 0.865498933 | J161: 0.8703849381 | K161: 0.8754041322 | L161: 0.8805434234 | M161: 0.8857902312 | N161: 0.8911324786 | O161: 0.8965585828 | P161: 0.9020574467 | Q161: 0.9076184497 | R161: 0.9132314377 | S161: 0.9188867139 | T161: 0.9245750282 | U161: 0.930287567 | V161: 0.9360159423 | W161: 0.9417521803 | X161: 0.94748871 | Y161: 0.9532183511 | Z161: 0.9589343012 | AA161: 0.9646301232 | AB161: 0.9702997315 | AC161: 0.9759373781 | AD161: 0.9815376375 | AE161: 0.9870953921 | AF161: 0.9926058155 | AG161: 0.9980643563 | AH161: 1.00346672 | AI161: 1.008808853 | AJ161: 1.014086919 | AK161: 1.019297283 | AL161: 1.024436489 | AM161: 1.029501237 | AN161: 1.034488362 | AO161: 1.039394805 | AP161: 1.044217592 | AQ161: 1.048953804 | AR161: 1.05360055 | AS161: 1.058154932 | AT161: 1.062614021 | AU161: 1.066974813 | AV161: 1.071234201 | AW161: 1.075388931 | AX161: 1.079435564 | AY161: 1.083370431 | AZ161: 1.087189587 | BA161: 1.090888761 | BB161: 1.094463304 | BC161: 1.097908129 | BD161: 1.101217655 | BE161: 1.104385739 | BF161: 1.107405605 | BG161: 1.110269771 | BH161: 1.112969967 | BI161: 1.115497045 | BJ161: 1.117840889 | BK161: 1.119990308 | BL161: 1.121932925 | BM161: 1.123655063 | BN161: 1.125141602 | BO161: 1.126375848 | BP161: 1.127339365 | BQ161: 1.128011814 | BR161: 1.128370755 | BS161: 1.128391447 | BT161: =BT157+BT159 -> 1.128046617 | BU161: 1.127306207 | BV161: 1.126137092 | BW161: 1.124502772 | BX161: 1.122363019 | BY161: 1.119673487 | BZ161: 1.116385273 | CA161: 1.112444417 | CB161: 1.107791338 | CC161: 1.102360187 | CD161: 1.0960781 | CE161: 1.088864343 | CF161: 1.080629307 | CG161: 1.071273327 | CH161: 1.060685289 | CI161: 1.048740946 | CJ161: 1.035300891 | CK161: 1.020208053 | CL161: 1.003284573 | CM161: 0.984327838 | CN161: 0.963105329 | CO161: 0.9393477849 | CP161: 0.912739866 | CQ161: 0.9099084852 | CR161: 0.9070445066 | CS161: =CS157+CS159 -> 0.9041475103 | CT161: 0.9012170683 | CU161: 0.8982527439 | CV161: 0.8952540922 | CW161: 0.892220659 | CX161: 0.8891519808 | CY161: 0.8860475849 | CZ161: 0.8829069885 | DA161: 0.8797296985 | DB161: 0.8765152116 | DC161: 0.8732630132 | DD161: 0.8699725778 | DE161: 0.8666433681 | DF161: 0.8632748345 | DG161: 0.8598664151 | DH161: 0.856417535 | DI161: 0.8529276057 | DJ161: 0.8493960249 | DK161: 0.8458221755 | DL161: 0.8422054254 | DM161: 0.838545127 | DN161: 0.8348406161 | DO161: 0.8310912116 | DP161: 0.8272962147 | DQ161: 0.8234549082 | DR161: 0.8195665554 | DS161: 0.8156303999 | DT161: 0.8116456639 | DU161: 0.8076115479 | DV161: 0.8035272294 | DW161: 0.7993918618 | DX161: 0.7952045735 | DY161: 0.7909644664 | DZ161: 0.7866706148 | EA161: 0.7823220637 | EB161: 0.7779178279 | EC161: 0.7734568897 | ED161: 0.7689381979 | EE161: 0.7643606652 | EF161: 0.7597231671 | EG161: 0.7550245389 | EH161: 0.7502635743 | EI161: 0.7454390221 | EJ161: 0.7405495842 | EK161: 0.7355939125 | EL161: 0.7305706054 | EM161: 0.7254782052 | EN161: 0.720315194 | EO161: 0.7150799893 | EP161: 0.7097709407 | EQ161: 0.7043863239 | ER161: 0.6989243366 | ES161: 0.693383092 | ET161: 0.6877606129 | EU161: 0.6820548249 | EV161: 0.6762635483 | EW161: 0.6703844902 | EX161: 0.6644152348 | EY161: 0.6583532332 | EZ161: 0.6521957918 | FA161: 0.645940059 | FB161: 0.6395830114 | FC161: 0.6331214368 | FD161: 0.6265519162 | FE161: =FE157+FE159 -> 0.6198708029 | FF161: 0.6130741987 | FG161: 0.6061579271 | FH161: 0.5991175023 | FI161: 0.5919480938 | FJ161: 0.5846444853 | FK161: 0.577201027 | FL161: 0.5696115803 | FM161: 0.5618694525 | FN161: 0.5539673195 | FO161: 0.5458971351 | FP161: 0.5376500206 | FQ161: 0.5292161338 | FR161: 0.5205845081 | FS161: 0.5117428557 | FT161: 0.5026773242 | FU161: 0.4933721909 | FV161: 0.4838094758 | FW161: 0.4739684446 | FX161: 0.4638249593 | FY161: 0.4533506179 | FZ161: 0.4425115898 | GA161: 0.4312670057 | GB161: 0.4195666719 | GC161: 0.4073477283 | GD161: 0.3945295794 | GE161: 0.3810058655 | GF161: 0.3666310317 | GG161: 0.3511962476 | GH161: 0.3343820591 | GI161: 0.3156524074 | GJ161: 0.2939652564 | GK161: 0.2666385383 | GL161: 0.2055562756 | GM161: =MAX(D161:GL161) -> 1.128391447
B163: Gamma_b | C163: Gb | D163: =D159*D150/c_g -> 0.05379088982 | E163: 0.05243369776 | F163: 0.05108868914 | G163: 0.04975404748 | H163: 0.04842812699 | I163: 0.04710944443 | J163: 0.04579667116 | K163: 0.04448862539 | L163: 0.04318426468 | M163: 0.04188267859 | N163: 0.04058308156 | O163: 0.03928480598 | P163: 0.03798729543 | Q163: 0.03669009823 | R163: 0.03539286105 | S163: 0.03409532284 | T163: 0.03279730886 | U163: 0.03149872503 | V163: 0.03019955237 | W163: 0.02889984169 | X163: 0.02759970852 | Y163: 0.02629932816 | Z163: 0.024998931 | AA163: 0.02369879802 | AB163: 0.02239925648 | AC163: 0.02110067582 | AD163: 0.01980346379 | AE163: 0.01850806274 | AF163: 0.01721494614 | AG163: 0.01592461529 | AH163: 0.01463759625 | AI163: 0.01335443695 | AJ163: =AJ159*AJ150/c_g -> 0.01207570456 | AK163: 0.01080198296 | AL163: 0.009533870535 | AM163: 0.008271978083 | AN163: 0.007016926992 | AO163: 0.005769347588 | AP163: 0.004529877703 | AQ163: 0.00329916145 | AR163: 0.00207784821 | AS163: 0.0008665918298 | AT163: -0.0003339499739 | AU163: -0.001523115989 | AV163: -0.002700241673 | AW163: -0.003864659099 | AX163: -0.005015696686 | AY163: -0.006152678703 | AZ163: -0.007274924557 | BA163: -0.008381747847 | BB163: -0.0094724552 | BC163: -0.01054634486 | BD163: -0.01160270505 | BE163: -0.0126408121 | BF163: -0.0136599283 | BG163: -0.01465929955 | BH163: -0.01563815268 | BI163: -0.01659569257 | BJ163: -0.01753109897 | BK163: -0.01844352301 | BL163: -0.01933208347 | BM163: -0.02019586263 | BN163: -0.02103390194 | BO163: -0.02184519721 | BP163: =BP159*BP150/c_g -> -0.02262869349 | BQ163: -0.02338327956 | BR163: -0.02410778197 | BS163: -0.02480095861 | BT163: -0.02546149181 | BU163: -0.02608798081 | BV163: -0.02667893369 | BW163: -0.02723275853 | BX163: -0.0277477538 | BY163: -0.02822209781 | BZ163: -0.02865383714 | CA163: -0.02904087382 | CB163: -0.029380951 | CC163: -0.02967163696 | CD163: -0.02991030689 | CE163: -0.0300941222 | CF163: -0.03022000649 | CG163: -0.03028461763 | CH163: -0.03028431456 | CI163: -0.03021511761 | CJ163: -0.03007266001 | CK163: -0.02985212787 | CL163: -0.02954818435 | CM163: -0.02915487195 | CN163: -0.02866548371 | CO163: -0.02807238901 | CP163: -0.02736679123 | CQ163: -0.02728966233 | CR163: -0.02721129567 | CS163: -0.02713167977 | CT163: -0.02705080294 | CU163: -0.02696865326 | CV163: =CV159*CV150/c_g -> -0.02688521861 | CW163: -0.02680048663 | CX163: -0.02671444469 | CY163: -0.02662707994 | CZ163: -0.02653837927 | DA163: -0.0264483293 | DB163: -0.02635691636 | DC163: -0.0262641265 | DD163: -0.02616994548 | DE163: -0.02607435875 | DF163: -0.02597735144 | DG163: -0.02587890834 | DH163: -0.02577901389 | DI163: -0.0256776522 | DJ163: -0.02557480698 | DK163: -0.02547046156 | DL163: -0.02536459886 | DM163: -0.0252572014 | DN163: -0.02514825123 | DO163: -0.02503772997 | DP163: -0.02492561875 | DQ163: -0.0248118982 | DR163: -0.02469654843 | DS163: -0.02457954902 | DT163: -0.02446087895 | DU163: -0.02434051662 | DV163: -0.02421843982 | DW163: -0.02409462565 | DX163: -0.02396905054 | DY163: -0.02384169021 | DZ163: -0.02371251958 | EA163: -0.02358151281 | EB163: =EB159*EB150/c_g -> -0.02344864319 | EC163: -0.02331388314 | ED163: -0.02317720412 | EE163: -0.02303857663 | EF163: -0.02289797009 | EG163: -0.02275535283 | EH163: -0.02261069202 | EI163: -0.02246395355 | EJ163: -0.02231510203 | EK163: -0.02216410063 | EL163: -0.02201091105 | EM163: -0.0218554934 | EN163: -0.02169780606 | EO163: -0.02153780565 | EP163: -0.0213754468 | EQ163: -0.02121068208 | ER163: -0.02104346185 | ES163: -0.02087373404 | ET163: -0.02070144403 | EU163: -0.0205265344 | EV163: -0.02034894475 | EW163: -0.02016861142 | EX163: -0.01998546722 | EY163: -0.01979944115 | EZ163: -0.01961045805 | FA163: -0.01941843821 | FB163: -0.01922329696 | FC163: -0.01902494418 | FD163: -0.01882328376 | FE163: -0.01861821303 | FF163: -0.01840962201 | FG163: -0.01819739262 | FH163: =FH159*FH150/c_g -> -0.01798139784 | FI163: -0.0177615006 | FJ163: -0.01753755258 | FK163: -0.01730939286 | FL163: -0.01707684623 | FM163: -0.0168397213 | FN163: -0.01659780823 | FO163: -0.01635087602 | FP163: -0.01609866932 | FQ163: -0.01584090452 | FR163: -0.01557726502 | FS163: -0.01530739541 | FT163: -0.01503089434 | FU163: -0.01474730542 | FV163: -0.01445610587 | FW163: -0.01415669178 | FX163: -0.01384835895 | FY163: -0.01353027748 | FZ163: -0.01320145731 | GA163: -0.01286070063 | GB163: -0.01250653425 | GC163: -0.01213711076 | GD163: -0.01175005843 | GE163: -0.01134224361 | GF163: -0.01090937295 | GG163: -0.01044528018 | GH163: -0.009940523302 | GI163: -0.009379243841 | GJ163: -0.008730589077 | GK163: -0.007915086418 | GL163: -0.006098809214
B164: Gamma_a | C164: Ga | D164: =D157*D150/c_g -> 1.243996489 | E164: =E157*E150/c_g -> 1.242387896 | F164: 1.240994256 | G164: 1.239786959 | H164: 1.238738729 | I164: 1.237823587 | J164: 1.237016822 | K164: 1.236294959 | L164: 1.235635723 | M164: 1.235018009 | N164: 1.234421849 | O164: 1.233828382 | P164: 1.233219814 | Q164: 1.232579395 | R164: 1.23189138 | S164: 1.231140999 | T164: 1.230314422 | U164: 1.229398731 | V164: 1.228381884 | W164: 1.227252682 | X164: 1.226000739 | Y164: 1.224616446 | Z164: 1.223090944 | AA164: 1.221416084 | AB164: 1.2195844 | AC164: 1.217589073 | AD164: 1.215423902 | AE164: 1.213083265 | AF164: 1.210562093 | AG164: 1.207855834 | AH164: 1.204960418 | AI164: 1.201872227 | AJ164: =AJ157*AJ150/c_g -> 1.198588063 | AK164: 1.19510511 | AL164: 1.191420906 | AM164: 1.187533305 | AN164: 1.183440449 | AO164: 1.17914073 | AP164: 1.174632757 | AQ164: 1.169915324 | AR164: 1.164987376 | AS164: 1.159847972 | AT164: 1.154496256 | AU164: 1.148931415 | AV164: 1.143152653 | AW164: 1.137159148 | AX164: 1.130950024 | AY164: 1.124524309 | AZ164: 1.117880903 | BA164: 1.111018542 | BB164: 1.103935759 | BC164: 1.096630848 | BD164: 1.089101826 | BE164: 1.081346396 | BF164: 1.073361907 | BG164: 1.065145314 | BH164: 1.056693137 | BI164: 1.048001422 | BJ164: 1.039065696 | BK164: 1.029880924 | BL164: 1.020441463 | BM164: 1.010741018 | BN164: 1.00077259 | BO164: 0.9905284264 | BP164: =BP157*BP150/c_g -> 0.97999997 | BQ164: 0.9691778002 | BR164: 0.9580515758 | BS164: 0.9466099714 | BT164: 0.9348406108 | BU164: 0.9227299945 | BV164: 0.9102634215 | BW164: 0.897424904 | BX164: 0.8841970731 | BY164: 0.8705610751 | BZ164: 0.856496455 | CA164: 0.8419810248 | CB164: 0.8269907147 | CC164: 0.8114994002 | CD164: 0.7954787027 | CE164: 0.7788977551 | CF164: 0.7617229219 | CG164: 0.743917465 | CH164: 0.7254411345 | CI164: 0.7062496657 | CJ164: 0.6862941477 | CK164: 0.6655202221 | CL164: 0.6438670459 | CM164: 0.6212659253 | CN164: 0.5976384781 | CO164: 0.5728941042 | CP164: 0.5469264073 | CQ164: 0.5442576679 | CR164: 0.5415753036 | CS164: 0.5388791706 | CT164: 0.5361691221 | CU164: 0.5334450081 | CV164: =CV157*CV150/c_g -> 0.5307066754 | CW164: 0.5279539675 | CX164: 0.5251867244 | CY164: 0.5224047825 | CZ164: 0.5196079744 | DA164: 0.516796129 | DB164: 0.513969071 | DC164: 0.5111266211 | DD164: 0.5082685955 | DE164: 0.5053948062 | DF164: 0.5025050601 | DG164: 0.4995991595 | DH164: 0.4966769016 | DI164: 0.4937380783 | DJ164: 0.490782476 | DK164: 0.4878098753 | DL164: 0.4848200509 | DM164: 0.4818127713 | DN164: 0.4787877983 | DO164: 0.475744887 | DP164: 0.4726837854 | DQ164: 0.469604234 | DR164: 0.4665059654 | DS164: 0.4633887042 | DT164: 0.4602521662 | DU164: 0.4570960584 | DV164: 0.4539200782 | DW164: 0.4507239131 | DX164: 0.4475072403 | DY164: 0.4442697258 | DZ164: 0.4410110242 | EA164: 0.4377307776 | EB164: =EB157*EB150/c_g -> 0.4344286157 | EC164: 0.4311041541 | ED164: 0.4277569944 | EE164: 0.4243867228 | EF164: 0.4209929096 | EG164: 0.4175751079 | EH164: 0.4141328526 | EI164: 0.4106656597 | EJ164: 0.4071730244 | EK164: 0.4036544205 | EL164: 0.4001092982 | EM164: 0.3965370834 | EN164: 0.3929371753 | EO164: 0.3893089448 | EP164: 0.3856517326 | EQ164: 0.381964847 | ER164: 0.3782475612 | ES164: 0.3744991109 | ET164: 0.3707186913 | EU164: 0.3669054539 | EV164: 0.3630585029 | EW164: 0.3591768913 | EX164: 0.3552596165 | EY164: 0.3513056154 | EZ164: 0.347313759 | FA164: 0.3432828463 | FB164: 0.3392115974 | FC164: 0.3350986461 | FD164: 0.3309425306 | FE164: 0.3267416845 | FF164: 0.3224944246 | FG164: 0.318198939 | FH164: =FH157*FH150/c_g -> 0.3138532721 | FI164: 0.3094553075 | FJ164: 0.3050027487 | FK164: 0.3004930967 | FL164: 0.295923623 | FM164: 0.2912913385 | FN164: 0.2865929572 | FO164: 0.281824852 | FP164: 0.2769830024 | FQ164: 0.2720629312 | FR164: 0.2670596274 | FS164: 0.2619674519 | FT164: 0.2567800198 | FU164: 0.2514900536 | FV164: 0.2460891964 | FW164: 0.2405677718 | FX164: 0.2349144703 | FY164: 0.2291159328 | FZ164: 0.223156187 | GA164: 0.2170158663 | GB164: 0.2106711008 | GC164: 0.2040918941 | GD164: 0.1972396576 | GE164: 0.1900633027 | GF164: 0.1824926958 | GG164: 0.1744269127 | GH164: 0.1657111194 | GI164: 0.1560847704 | GJ164: 0.1450400172 | GK164: 0.1312661764 | GL164: 0.1009709364
B165: Gamma | C165: G | D165: =D164+D163 -> 1.297787379 | E165: =E164+E163 -> 1.294821594 | F165: 1.292082945 | G165: 1.289541007 | H165: 1.287166856 | I165: 1.284933031 | J165: 1.282813493 | K165: 1.280783584 | L165: 1.278819987 | M165: 1.276900687 | N165: 1.275004931 | O165: 1.273113188 | P165: 1.27120711 | Q165: 1.269269493 | R165: 1.267284241 | S165: 1.265236321 | T165: 1.263111731 | U165: 1.260897456 | V165: 1.258581436 | W165: 1.256152524 | X165: 1.253600447 | Y165: 1.250915775 | Z165: 1.248089875 | AA165: 1.245114882 | AB165: 1.241983656 | AC165: 1.238689749 | AD165: 1.235227365 | AE165: 1.231591328 | AF165: 1.227777039 | AG165: 1.223780449 | AH165: 1.219598014 | AI165: 1.215226664 | AJ165: 1.210663768 | AK165: 1.205907093 | AL165: 1.200954776 | AM165: 1.195805283 | AN165: 1.190457376 | AO165: 1.184910078 | AP165: 1.179162635 | AQ165: 1.173214486 | AR165: 1.167065224 | AS165: 1.160714564 | AT165: 1.154162306 | AU165: 1.147408299 | AV165: 1.140452411 | AW165: 1.133294489 | AX165: 1.125934327 | AY165: 1.11837163 | AZ165: 1.110605978 | BA165: 1.102636794 | BB165: 1.094463304 | BC165: 1.086084503 | BD165: 1.077499121 | BE165: 1.068705584 | BF165: 1.059701979 | BG165: 1.050486014 | BH165: 1.041054985 | BI165: 1.03140573 | BJ165: 1.021534597 | BK165: 1.011437401 | BL165: 1.00110938 | BM165: 0.9905451553 | BN165: 0.9797386877 | BO165: 0.9686832291 | BP165: 0.9573712765 | BQ165: =BQ164+BQ163 -> 0.9457945206 | BR165: 0.9339437938 | BS165: 0.9218090128 | BT165: 0.909379119 | BU165: 0.8966420137 | BV165: 0.8835844879 | BW165: 0.8701921455 | BX165: 0.8564493193 | BY165: 0.8423389773 | BZ165: 0.8278426178 | CA165: 0.812940151 | CB165: 0.7976097637 | CC165: 0.7818277632 | CD165: 0.7655683958 | CE165: 0.7488036329 | CF165: 0.7315029154 | CG165: 0.7136328473 | CH165: 0.6951568199 | CI165: 0.676034548 | CJ165: 0.6562214877 | CK165: 0.6356680943 | CL165: 0.6143188616 | CM165: 0.5921110533 | CN165: 0.5689729944 | CO165: 0.5448217152 | CP165: 0.519559616 | CQ165: 0.5169680055 | CR165: 0.5143640079 | CS165: =CS164+CS163 -> 0.5117474908 | CT165: 0.5091183192 | CU165: 0.5064763549 | CV165: 0.5038214568 | CW165: 0.5011534809 | CX165: 0.4984722797 | CY165: 0.4957777025 | CZ165: 0.4930695951 | DA165: 0.4903477997 | DB165: 0.4876121546 | DC165: 0.4848624946 | DD165: 0.4820986501 | DE165: 0.4793204474 | DF165: 0.4765277086 | DG165: 0.4737202512 | DH165: 0.4708978877 | DI165: 0.4680604261 | DJ165: 0.465207669 | DK165: 0.4623394138 | DL165: 0.4594554521 | DM165: 0.4565555699 | DN165: 0.4536395471 | DO165: 0.4507071571 | DP165: 0.4477581667 | DQ165: 0.4447923358 | DR165: 0.441809417 | DS165: 0.4388091551 | DT165: 0.4357912872 | DU165: 0.4327555417 | DV165: 0.4297016384 | DW165: 0.4266292875 | DX165: 0.4235381898 | DY165: 0.4204280356 | DZ165: 0.4172985046 | EA165: 0.4141492648 | EB165: 0.4109799725 | EC165: 0.4077902709 | ED165: 0.4045797903 | EE165: 0.4013481462 | EF165: 0.3980949395 | EG165: 0.3948197551 | EH165: 0.3915221606 | EI165: 0.3882017061 | EJ165: 0.3848579224 | EK165: 0.3814903198 | EL165: 0.3780983872 | EM165: 0.37468159 | EN165: 0.3712393692 | EO165: 0.3677711391 | EP165: 0.3642762859 | EQ165: 0.360754165 | ER165: 0.3572040994 | ES165: 0.3536253769 | ET165: 0.3500172473 | EU165: 0.3463789195 | EV165: 0.3427095582 | EW165: 0.3390082799 | EX165: 0.3352741493 | EY165: 0.3315061742 | EZ165: 0.3277033009 | FA165: 0.323864408 | FB165: 0.3199883005 | FC165: 0.3160737019 | FD165: 0.3121192469 | FE165: =FE164+FE163 -> 0.3081234714 | FF165: 0.3040848026 | FG165: 0.3000015464 | FH165: 0.2958718742 | FI165: 0.2916938069 | FJ165: 0.2874651962 | FK165: 0.2831837039 | FL165: 0.2788467767 | FM165: 0.2744516172 | FN165: 0.269995149 | FO165: 0.265473976 | FP165: 0.2608843331 | FQ165: 0.2562220266 | FR165: 0.2514823624 | FS165: 0.2466600565 | FT165: 0.2417491254 | FU165: 0.2367427482 | FV165: 0.2316330906 | FW165: 0.2264110801 | FX165: 0.2210661114 | FY165: 0.2155856554 | FZ165: 0.2099547297 | GA165: 0.2041551656 | GB165: 0.1981645666 | GC165: 0.1919547833 | GD165: 0.1854895992 | GE165: 0.1787210591 | GF165: 0.1715833228 | GG165: 0.1639816325 | GH165: 0.1557705961 | GI165: 0.1467055266 | GJ165: 0.1363094281 | GK165: 0.1233510899 | GL165: 0.0948721272
B167: Elliptical lift distribution function | C167: f | D167: =f(0,D149)*C_L -> 1.274186 | E167: 1.274546778 | F167: 1.274440336 | G167: 1.273939135 | H167: 1.273107709 | I167: 1.272003129 | J167: 1.270675463 | K167: 1.269168215 | L167: 1.267518759 | M167: 1.265758753 | N167: 1.263914547 | O167: 1.262007576 | P167: 1.260054744 | Q167: 1.258068785 | R167: 1.256058629 | S167: 1.254029739 | T167: 1.251984445 | U167: 1.249922264 | V167: 1.247840207 | W167: 1.24573307 | X167: 1.243593723 | Y167: 1.241413372 | Z167: 1.239181823 | AA167: 1.236887724 | AB167: 1.234518798 | AC167: 1.232062066 | AD167: 1.22950405 | AE167: 1.226830974 | AF167: 1.224028944 | AG167: 1.221084123 | AH167: 1.217982883 | AI167: 1.214711958 | AJ167: =f(0,AJ149)*C_L -> 1.211258576 | AK167: 1.207610578 | AL167: 1.203756531 | AM167: 1.199685822 | AN167: 1.195388745 | AO167: 1.190856572 | AP167: 1.186081612 | AQ167: 1.18105726 | AR167: 1.175778034 | AS167: 1.170239592 | AT167: 1.164438748 | AU167: 1.158373468 | AV167: 1.152042856 | AW167: 1.145447127 | AX167: 1.138587569 | AY167: 1.13146649 | AZ167: 1.124087156 | BA167: 1.116453716 | BB167: 1.108571109 | BC167: 1.10044497 | BD167: 1.092081512 | BE167: 1.083487399 | BF167: 1.074669617 | BG167: 1.065635313 | BH167: 1.05639164 | BI167: 1.04694558 | BJ167: 1.037303755 | BK167: 1.027472232 | BL167: 1.017456305 | BM167: 1.007260276 | BN167: 0.9968872158 | BO167: 0.9863387161 | BP167: =f(0,BP149)*C_L -> 0.9756146274 | BQ167: 0.9647127859 | BR167: 0.9536287274 | BS167: 0.9423553889 | BT167: 0.9308827978 | BU167: 0.9191977492 | BV167: 0.9072834701 | BW167: 0.8951192718 | BX167: 0.88268019 | BY167: 0.8699366117 | BZ167: 0.8568538912 | CA167: 0.8433919524 | CB167: 0.8295048793 | CC167: 0.8151404942 | CD167: 0.8002399238 | CE167: 0.784737152 | CF167: 0.7685585614 | CG167: 0.7516224619 | CH167: 0.7338386069 | CI167: 0.7151076976 | CJ167: 0.6953208746 | CK167: 0.6743591967 | CL167: 0.6520931087 | CM167: 0.6283818952 | CN167: 0.6030731233 | CO167: 0.5760020725 | CP167: 0.5469911518 | CQ167: 0.5439761311 | CR167: 0.5409396142 | CS167: 0.5378814008 | CT167: 0.5348012897 | CU167: 0.5316990778 | CV167: =f(0,CV149)*C_L -> 0.5285745609 | CW167: 0.5254275331 | CX167: 0.5222577873 | CY167: 0.5190651148 | CZ167: 0.5158493054 | DA167: 0.5126101477 | DB167: 0.5093474284 | DC167: 0.5060609332 | DD167: 0.5027504459 | DE167: 0.4994157492 | DF167: 0.4960566239 | DG167: 0.4926728496 | DH167: 0.4892642044 | DI167: 0.4858304646 | DJ167: 0.4823714053 | DK167: 0.4788867999 | DL167: 0.4753764204 | DM167: 0.471840037 | DN167: 0.4682774186 | DO167: 0.4646883325 | DP167: 0.4610725444 | DQ167: 0.4574298185 | DR167: 0.4537599173 | DS167: 0.4500626019 | DT167: 0.4463376317 | DU167: 0.4425847644 | DV167: 0.4388037564 | DW167: 0.4349943623 | DX167: 0.431156335 | DY167: 0.4272894261 | DZ167: 0.4233933852 | EA167: 0.4194679606 | EB167: =f(0,EB149)*C_L -> 0.4155128987 | EC167: 0.4115279445 | ED167: 0.4075128411 | EE167: 0.4034673302 | EF167: 0.3993911516 | EG167: 0.3952840436 | EH167: 0.3911457427 | EI167: 0.3869759839 | EJ167: 0.3827745002 | EK167: 0.3785410234 | EL167: 0.374275283 | EM167: 0.3699770072 | EN167: 0.3656459224 | EO167: 0.3612817533 | EP167: 0.3568842227 | EQ167: 0.3524530518 | ER167: 0.3479879601 | ES167: 0.3434886653 | ET167: 0.3389548832 | EU167: 0.3343863282 | EV167: 0.3297827125 | EW167: 0.3251437469 | EX167: 0.32046914 | EY167: 0.3157585991 | EZ167: 0.3110118294 | FA167: 0.3062285342 | FB167: 0.3014084153 | FC167: 0.2965511724 | FD167: 0.2916565037 | FE167: 0.2867241051 | FF167: 0.2817536712 | FG167: 0.2767448942 | FH167: =f(0,FH149)*C_L -> 0.2716974649 | FI167: 0.2666110721 | FJ167: 0.2614854026 | FK167: 0.2563201415 | FL167: 0.2511149719 | FM167: 0.245869575 | FN167: 0.2405836303 | FO167: 0.2352568152 | FP167: 0.2298888053 | FQ167: 0.2244792742 | FR167: 0.2190278935 | FS167: 0.2135343332 | FT167: 0.207998261 | FU167: 0.2024193429 | FV167: 0.1967972428 | FW167: 0.1911316227 | FX167: 0.1854221426 | FY167: 0.1796684606 | FZ167: 0.1738702328 | GA167: 0.1680271132 | GB167: 0.1621387539 | GC167: 0.1562048051 | GD167: 0.1502249148 | GE167: 0.1441987291 | GF167: 0.138125892 | GG167: 0.1320060455 | GH167: 0.1258388297 | GI167: 0.1196238823 | GJ167: 0.1133608394 | GK167: 0.1070493347 | GL167: 0.100689
B168: Error | D168: =(D165-D167)^2 -> 0.0005570250692 | E168: 0.0004110681368 | F168: 0.0003112616423 | G168: 0.0002434183949 | H168: 0.0001976596258 | I168: 0.0001671823838 | J168: 0.0001473317906 | K168: 0.0001349167949 | L168: 0.0001277177534 | M168: 0.0001241426977 | N168: 0.0001229966179 | O168: 0.0001233345977 | P168: 0.0001243752668 | Q168: 0.0001254558699 | R168: 0.0001260143718 | S168: 0.000125587495 | T168: 0.0001238164903 | U168: 0.0001204548366 | V168: 0.0001153740088 | W168: 0.0001085650056 | X168: 0.000100134534 | Y168: 9.029566058e-05 | Z168: 7.93533975e-05 | AA168: 6.768613553e-05 | AB168: 5.572410754e-05 | AC168: 4.392618778e-05 | AD168: 3.275634292e-05 | AE168: 2.266097073e-05 | AF168: 1.404821774e-05 | AG168: 7.270176846e-06 | AH168: 2.60864883e-06 | AI168: 2.649222341e-07 | AJ168: =(AJ165-AJ167)^2 -> 3.537972211e-07 | AK168: 2.901861599e-06 | AL168: 7.849829284e-06 | AM168: 1.50585797e-05 | AN168: 2.431839571e-05 | AO168: 3.536079036e-05 | AP168: 4.787224108e-05 | AQ168: 6.150911292e-05 | AR168: 7.591305058e-05 | AS168: 9.072614816e-05 | AT168: 0.000105605264 | AU168: 0.0001202349313 | AV168: 0.0001343384189 | AW168: 0.0001476866138 | AX168: 0.0001601045267 | AY168: 0.000171475353 | AZ168: 0.0001817421512 | BA168: 0.0001909073222 | BB168: 0.0001990301854 | BC168: 0.0002062230337 | BD168: 0.0002126461186 | BE168: 0.0002185020599 | BF168: 0.0002240301789 | BG168: 0.0002295012359 | BH168: 0.0002352129931 | BI168: 0.0002414869342 | BJ168: 0.0002486663448 | BK168: 0.0002571158052 | BL168: 0.0002672219639 | BM168: 0.000279395256 | BN168: 0.0002940720173 | BO168: 0.000311716221 | BP168: =(BP165-BP167)^2 -> 0.0003328198548 | BQ168: 0.0003579007617 | BR168: 0.0003874966117 | BS168: 0.0004221535708 | BT168: 0.0004624082022 | BU168: 0.0005087612029 | BV168: 0.0005616417585 | BW168: 0.0006213616296 | BX168: 0.0006880585773 | BY168: 0.0007616294264 | BZ168: 0.000841653986 | CA168: 0.0009273122067 | CB168: 0.001017298397 | CC168: 0.001109738049 | CD168: 0.001202114851 | CE168: 0.001291217798 | CF168: 0.0013731209 | CG168: 0.001443210812 | CH168: 0.001496280641 | CI168: 0.001526711019 | CJ168: 0.001528762055 | CK168: 0.001497001407 | CL168: 0.001426893741 | CM168: 0.001315573969 | CN168: 0.001162818793 | CO168: 0.0009722146779 | CP168: 0.0007524891551 | CQ168: 0.0007294388483 | CR168: 0.0007062628471 | CS168: 0.0006829812514 | CT168: 0.0006596149747 | CU168: 0.0006361857541 | CV168: =(CV165-CV167)^2 -> 0.0006127161612 | CW168: 0.0005892296111 | CX168: 0.0005657503714 | CY168: 0.0005423035701 | CZ168: 0.0005189152028 | DA168: 0.000495612139 | DB168: 0.0004724221273 | DC168: 0.0004493737993 | DD168: 0.0004264966725 | DE168: 0.0004038211522 | DF168: 0.0003813785313 | DG168: 0.000359200989 | DH168: 0.0003373215878 | DI168: 0.0003157742687 | DJ168: 0.0002945938442 | DK168: 0.0002738159894 | DL168: 0.000253477231 | DM168: 0.0002336149334 | DN168: 0.0002142672826 | DO168: 0.0001954732671 | DP168: 0.0001772726551 | DQ168: 0.0001597059697 | DR168: 0.0001428144593 | DS168: 0.0001266400645 | DT168: 0.0001112253811 | DU168: 9.661361862e-05 | DV168: 8.284855316e-05 | DW168: 6.99744762e-05 | DX168: 5.803613696e-05 | DY168: 4.707867896e-05 | DZ168: 3.714756994e-05 | EA168: 2.828852474e-05 | EB168: =(EB165-EB167)^2 -> 2.054742049e-05 | EC168: 1.397020352e-05 | ED168: 8.60278728e-06 | EE168: 4.490940634e-06 | EF168: 1.680165612e-06 | EG168: 2.155638097e-07 | EH168: 1.416904611e-07 | EI168: 1.502395133e-06 | EJ168: 4.340647895e-06 | EK168: 8.6983497e-06 | EL168: 1.461612558e-05 | EM168: 2.213309914e-05 | EN168: 3.128664661e-05 | EO168: 4.211212868e-05 | EP168: 5.464259794e-05 | EQ168: 6.890847966e-05 | ER168: 8.49372234e-05 | ES168: 0.0001027529226 | ET168: 0.0001223758987 | EU168: 0.0001438222468 | EV168: 0.0001671033384 | EW168: 0.0001922252763 | EX168: 0.0002191882983 | EY168: 0.0002479861215 | EZ168: 0.0002786052225 | FA168: 0.0003110240462 | FB168: 0.000345212133 | FC168: 0.0003811291564 | FD168: 0.0004187238596 | FE168: 0.0004579328776 | FF168: 0.0004986794305 | FG168: 0.000540871871 | FH168: =(FH165-FH167)^2 -> 0.0005844020649 | FI168: 0.0006291435828 | FJ168: 0.000674949673 | FK168: 0.0007216509848 | FL168: 0.0007690530009 | FM168: 0.0008169331343 | FN168: 0.0008650374298 | FO168: 0.0009130768048 | FP168: 0.0009607227426 | FQ168: 0.001007602335 | FR168: 0.001053292547 | FS168: 0.00109731354 | FT168: 0.001139120848 | FU168: 0.001178096149 | FV168: 0.001213536289 | FW168: 0.001244640112 | FX168: 0.001270492508 | FY168: 0.001290044879 | FZ168: 0.001302090918 | GA168: 0.001305236173 | GB168: 0.001297859176 | GC168: 0.001278060942 | GD168: 0.001243597964 | GE168: 0.001191791268 | GF168: 0.001119399679 | GG168: 0.001022438164 | GH168: 0.0008959106454 | GI168: 0.0007334154562 | GJ168: 0.0005266377239 | GK168: 0.0002657472234 | GL168: 3.383600916e-05 | GM168: =SUM(D168:GL168) -> 0.08208512857
B170: Mason's optimum lift distribution function | D170: =((-0.178321*D149^3)-(0.241023*D149^2)-(0.353808*D149)+0.814627)*'Mason''s Curve'!$H$35*C_L -> 1.462886514 | E170: =((-0.178321*E149^3)-(0.241023*E149^2)-(0.353808*E149)+0.814627)*'Mason''s Curve'!$H$35*C_L -> 1.456489317 | F170: =((-0.178321*F149^3)-(0.241023*F149^2)-(0.353808*F149)+0.814627)*'Mason''s Curve'!$H$35*C_L -> 1.450003634 | G170: =((-0.178321*G149^3)-(0.241023*G149^2)-(0.353808*G149)+0.814627)*'Mason''s Curve'!$H$35*C_L -> 1.443427544 | H170: =((-0.178321*H149^3)-(0.241023*H149^2)-(0.353808*H149)+0.814627)*'Mason''s Curve'!$H$35*C_L -> 1.436759125 | I170: =((-0.178321*I149^3)-(0.241023*I149^2)-(0.353808*I149)+0.814627)*'Mason''s Curve'!$H$35*C_L -> 1.429996457 | J170: =((-0.178321*J149^3)-(0.241023*J149^2)-(0.353808*J149)+0.814627)*'Mason''s Curve'!$H$35*C_L -> 1.423137617 | K170: =((-0.178321*K149^3)-(0.241023*K149^2)-(0.353808*K149)+0.814627)*'Mason''s Curve'!$H$35*C_L -> 1.416180684 | L170: =((-0.178321*L149^3)-(0.241023*L149^2)-(0.353808*L149)+0.814627)*'Mason''s Curve'!$H$35*C_L -> 1.409123737 | M170: =((-0.178321*M149^3)-(0.241023*M149^2)-(0.353808*M149)+0.814627)*'Mason''s Curve'!$H$35*C_L -> 1.401964855 | N170: =((-0.178321*N149^3)-(0.241023*N149^2)-(0.353808*N149)+0.814627)*'Mason''s Curve'!$H$35*C_L -> 1.394702116 | O170: =((-0.178321*O149^3)-(0.241023*O149^2)-(0.353808*O149)+0.814627)*'Mason''s Curve'!$H$35*C_L -> 1.387333599 | P170: =((-0.178321*P149^3)-(0.241023*P149^2)-(0.353808*P149)+0.814627)*'Mason''s Curve'!$H$35*C_L -> 1.379857383 | Q170: =((-0.178321*Q149^3)-(0.241023*Q149^2)-(0.353808*Q149)+0.814627)*'Mason''s Curve'!$H$35*C_L -> 1.372271546 | R170: =((-0.178321*R149^3)-(0.241023*R149^2)-(0.353808*R149)+0.814627)*'Mason''s Curve'!$H$35*C_L -> 1.364574167 | S170: =((-0.178321*S149^3)-(0.241023*S149^2)-(0.353808*S149)+0.814627)*'Mason''s Curve'!$H$35*C_L -> 1.356763324 | T170: =((-0.178321*T149^3)-(0.241023*T149^2)-(0.353808*T149)+0.814627)*'Mason''s Curve'!$H$35*C_L -> 1.348837097 | U170: =((-0.178321*U149^3)-(0.241023*U149^2)-(0.353808*U149)+0.814627)*'Mason''s Curve'!$H$35*C_L -> 1.340793563 | V170: =((-0.178321*V149^3)-(0.241023*V149^2)-(0.353808*V149)+0.814627)*'Mason''s Curve'!$H$35*C_L -> 1.332630802 | W170: =((-0.178321*W149^3)-(0.241023*W149^2)-(0.353808*W149)+0.814627)*'Mason''s Curve'!$H$35*C_L -> 1.324346892 | X170: =((-0.178321*X149^3)-(0.241023*X149^2)-(0.353808*X149)+0.814627)*'Mason''s Curve'!$H$35*C_L -> 1.315939912 | Y170: =((-0.178321*Y149^3)-(0.241023*Y149^2)-(0.353808*Y149)+0.814627)*'Mason''s Curve'!$H$35*C_L -> 1.307407941 | Z170: =((-0.178321*Z149^3)-(0.241023*Z149^2)-(0.353808*Z149)+0.814627)*'Mason''s Curve'!$H$35*C_L -> 1.298749056 | AA170: =((-0.178321*AA149^3)-(0.241023*AA149^2)-(0.353808*AA149)+0.814627)*'Mason''s Curve'!$H$35*C_L -> 1.289961338 | AB170: =((-0.178321*AB149^3)-(0.241023*AB149^2)-(0.353808*AB149)+0.814627)*'Mason''s Curve'!$H$35*C_L -> 1.281042864 | AC170: =((-0.178321*AC149^3)-(0.241023*AC149^2)-(0.353808*AC149)+0.814627)*'Mason''s Curve'!$H$35*C_L -> 1.271991713 | AD170: =((-0.178321*AD149^3)-(0.241023*AD149^2)-(0.353808*AD149)+0.814627)*'Mason''s Curve'!$H$35*C_L -> 1.262805963 | AE170: =((-0.178321*AE149^3)-(0.241023*AE149^2)-(0.353808*AE149)+0.814627)*'Mason''s Curve'!$H$35*C_L -> 1.253483695 | AF170: =((-0.178321*AF149^3)-(0.241023*AF149^2)-(0.353808*AF149)+0.814627)*'Mason''s Curve'!$H$35*C_L -> 1.244022985 | AG170: =((-0.178321*AG149^3)-(0.241023*AG149^2)-(0.353808*AG149)+0.814627)*'Mason''s Curve'!$H$35*C_L -> 1.234421913 | AH170: =((-0.178321*AH149^3)-(0.241023*AH149^2)-(0.353808*AH149)+0.814627)*'Mason''s Curve'!$H$35*C_L -> 1.224678557 | AI170: =((-0.178321*AI149^3)-(0.241023*AI149^2)-(0.353808*AI149)+0.814627)*'Mason''s Curve'!$H$35*C_L -> 1.214790996 | AJ170: =((-0.178321*AJ149^3)-(0.241023*AJ149^2)-(0.353808*AJ149)+0.814627)*'Mason''s Curve'!$H$35*C_L -> 1.204757309 | AK170: =((-0.178321*AK149^3)-(0.241023*AK149^2)-(0.353808*AK149)+0.814627)*'Mason''s Curve'!$H$35*C_L -> 1.194575574 | AL170: =((-0.178321*AL149^3)-(0.241023*AL149^2)-(0.353808*AL149)+0.814627)*'Mason''s Curve'!$H$35*C_L -> 1.184243871 | AM170: =((-0.178321*AM149^3)-(0.241023*AM149^2)-(0.353808*AM149)+0.814627)*'Mason''s Curve'!$H$35*C_L -> 1.173760276 | AN170: =((-0.178321*AN149^3)-(0.241023*AN149^2)-(0.353808*AN149)+0.814627)*'Mason''s Curve'!$H$35*C_L -> 1.163122871 | AO170: =((-0.178321*AO149^3)-(0.241023*AO149^2)-(0.353808*AO149)+0.814627)*'Mason''s Curve'!$H$35*C_L -> 1.152329732 | AP170: =((-0.178321*AP149^3)-(0.241023*AP149^2)-(0.353808*AP149)+0.814627)*'Mason''s Curve'!$H$35*C_L -> 1.141378938 | AQ170: =((-0.178321*AQ149^3)-(0.241023*AQ149^2)-(0.353808*AQ149)+0.814627)*'Mason''s Curve'!$H$35*C_L -> 1.130268569 | AR170: =((-0.178321*AR149^3)-(0.241023*AR149^2)-(0.353808*AR149)+0.814627)*'Mason''s Curve'!$H$35*C_L -> 1.118996703 | AS170: =((-0.178321*AS149^3)-(0.241023*AS149^2)-(0.353808*AS149)+0.814627)*'Mason''s Curve'!$H$35*C_L -> 1.107561419 | AT170: =((-0.178321*AT149^3)-(0.241023*AT149^2)-(0.353808*AT149)+0.814627)*'Mason''s Curve'!$H$35*C_L -> 1.095960795 | AU170: =((-0.178321*AU149^3)-(0.241023*AU149^2)-(0.353808*AU149)+0.814627)*'Mason''s Curve'!$H$35*C_L -> 1.084192909 | AV170: =((-0.178321*AV149^3)-(0.241023*AV149^2)-(0.353808*AV149)+0.814627)*'Mason''s Curve'!$H$35*C_L -> 1.072255841 | AW170: =((-0.178321*AW149^3)-(0.241023*AW149^2)-(0.353808*AW149)+0.814627)*'Mason''s Curve'!$H$35*C_L -> 1.060147669 | AX170: =((-0.178321*AX149^3)-(0.241023*AX149^2)-(0.353808*AX149)+0.814627)*'Mason''s Curve'!$H$35*C_L -> 1.047866472 | AY170: =((-0.178321*AY149^3)-(0.241023*AY149^2)-(0.353808*AY149)+0.814627)*'Mason''s Curve'!$H$35*C_L -> 1.035410329 | AZ170: =((-0.178321*AZ149^3)-(0.241023*AZ149^2)-(0.353808*AZ149)+0.814627)*'Mason''s Curve'!$H$35*C_L -> 1.022777318 | BA170: =((-0.178321*BA149^3)-(0.241023*BA149^2)-(0.353808*BA149)+0.814627)*'Mason''s Curve'!$H$35*C_L -> 1.009965517 | BB170: =((-0.178321*BB149^3)-(0.241023*BB149^2)-(0.353808*BB149)+0.814627)*'Mason''s Curve'!$H$35*C_L -> 0.9969730062 | BC170: =((-0.178321*BC149^3)-(0.241023*BC149^2)-(0.353808*BC149)+0.814627)*'Mason''s Curve'!$H$35*C_L -> 0.9837978632 | BD170: =((-0.178321*BD149^3)-(0.241023*BD149^2)-(0.353808*BD149)+0.814627)*'Mason''s Curve'!$H$35*C_L -> 0.970438167 | BE170: =((-0.178321*BE149^3)-(0.241023*BE149^2)-(0.353808*BE149)+0.814627)*'Mason''s Curve'!$H$35*C_L -> 0.9568919962 | BF170: =((-0.178321*BF149^3)-(0.241023*BF149^2)-(0.353808*BF149)+0.814627)*'Mason''s Curve'!$H$35*C_L -> 0.9431574295 | BG170: =((-0.178321*BG149^3)-(0.241023*BG149^2)-(0.353808*BG149)+0.814627)*'Mason''s Curve'!$H$35*C_L -> 0.9292325455 | BH170: =((-0.178321*BH149^3)-(0.241023*BH149^2)-(0.353808*BH149)+0.814627)*'Mason''s Curve'!$H$35*C_L -> 0.9151154229 | BI170: =((-0.178321*BI149^3)-(0.241023*BI149^2)-(0.353808*BI149)+0.814627)*'Mason''s Curve'!$H$35*C_L -> 0.9008041403 | BJ170: =((-0.178321*BJ149^3)-(0.241023*BJ149^2)-(0.353808*BJ149)+0.814627)*'Mason''s Curve'!$H$35*C_L -> 0.8862967763 | BK170: =((-0.178321*BK149^3)-(0.241023*BK149^2)-(0.353808*BK149)+0.814627)*'Mason''s Curve'!$H$35*C_L -> 0.8715914098 | BL170: =((-0.178321*BL149^3)-(0.241023*BL149^2)-(0.353808*BL149)+0.814627)*'Mason''s Curve'!$H$35*C_L -> 0.8566861192 | BM170: =((-0.178321*BM149^3)-(0.241023*BM149^2)-(0.353808*BM149)+0.814627)*'Mason''s Curve'!$H$35*C_L -> 0.8415789832 | BN170: =((-0.178321*BN149^3)-(0.241023*BN149^2)-(0.353808*BN149)+0.814627)*'Mason''s Curve'!$H$35*C_L -> 0.8262680805 | BO170: =((-0.178321*BO149^3)-(0.241023*BO149^2)-(0.353808*BO149)+0.814627)*'Mason''s Curve'!$H$35*C_L -> 0.8107514898 | BP170: =((-0.178321*BP149^3)-(0.241023*BP149^2)-(0.353808*BP149)+0.814627)*'Mason''s Curve'!$H$35*C_L -> 0.7950272897 | BQ170: =((-0.178321*BQ149^3)-(0.241023*BQ149^2)-(0.353808*BQ149)+0.814627)*'Mason''s Curve'!$H$35*C_L -> 0.7790935589 | BR170: =((-0.178321*BR149^3)-(0.241023*BR149^2)-(0.353808*BR149)+0.814627)*'Mason''s Curve'!$H$35*C_L -> 0.7629483759 | BS170: =((-0.178321*BS149^3)-(0.241023*BS149^2)-(0.353808*BS149)+0.814627)*'Mason''s Curve'!$H$35*C_L -> 0.7465898196 | BT170: =((-0.178321*BT149^3)-(0.241023*BT149^2)-(0.353808*BT149)+0.814627)*'Mason''s Curve'!$H$35*C_L -> 0.7300159684 | BU170: =((-0.178321*BU149^3)-(0.241023*BU149^2)-(0.353808*BU149)+0.814627)*'Mason''s Curve'!$H$35*C_L -> 0.7132249011 | BV170: =((-0.178321*BV149^3)-(0.241023*BV149^2)-(0.353808*BV149)+0.814627)*'Mason''s Curve'!$H$35*C_L -> 0.6962146964 | BW170: =((-0.178321*BW149^3)-(0.241023*BW149^2)-(0.353808*BW149)+0.814627)*'Mason''s Curve'!$H$35*C_L -> 0.6789834328 | BX170: =((-0.178321*BX149^3)-(0.241023*BX149^2)-(0.353808*BX149)+0.814627)*'Mason''s Curve'!$H$35*C_L -> 0.6615291891 | BY170: =((-0.178321*BY149^3)-(0.241023*BY149^2)-(0.353808*BY149)+0.814627)*'Mason''s Curve'!$H$35*C_L -> 0.6438500438 | BZ170: =((-0.178321*BZ149^3)-(0.241023*BZ149^2)-(0.353808*BZ149)+0.814627)*'Mason''s Curve'!$H$35*C_L -> 0.6259440757 | CA170: =((-0.178321*CA149^3)-(0.241023*CA149^2)-(0.353808*CA149)+0.814627)*'Mason''s Curve'!$H$35*C_L -> 0.6078093634 | CB170: =((-0.178321*CB149^3)-(0.241023*CB149^2)-(0.353808*CB149)+0.814627)*'Mason''s Curve'!$H$35*C_L -> 0.5894439856 | CC170: =((-0.178321*CC149^3)-(0.241023*CC149^2)-(0.353808*CC149)+0.814627)*'Mason''s Curve'!$H$35*C_L -> 0.5708460209 | CD170: =((-0.178321*CD149^3)-(0.241023*CD149^2)-(0.353808*CD149)+0.814627)*'Mason''s Curve'!$H$35*C_L -> 0.5520135479 | CE170: =((-0.178321*CE149^3)-(0.241023*CE149^2)-(0.353808*CE149)+0.814627)*'Mason''s Curve'!$H$35*C_L -> 0.5329446453 | CF170: =((-0.178321*CF149^3)-(0.241023*CF149^2)-(0.353808*CF149)+0.814627)*'Mason''s Curve'!$H$35*C_L -> 0.5136373918 | CG170: =((-0.178321*CG149^3)-(0.241023*CG149^2)-(0.353808*CG149)+0.814627)*'Mason''s Curve'!$H$35*C_L -> 0.4940898661 | CH170: =((-0.178321*CH149^3)-(0.241023*CH149^2)-(0.353808*CH149)+0.814627)*'Mason''s Curve'!$H$35*C_L -> 0.4743001467 | CI170: =((-0.178321*CI149^3)-(0.241023*CI149^2)-(0.353808*CI149)+0.814627)*'Mason''s Curve'!$H$35*C_L -> 0.4542663123 | CJ170: =((-0.178321*CJ149^3)-(0.241023*CJ149^2)-(0.353808*CJ149)+0.814627)*'Mason''s Curve'!$H$35*C_L -> 0.4339864416 | CK170: =((-0.178321*CK149^3)-(0.241023*CK149^2)-(0.353808*CK149)+0.814627)*'Mason''s Curve'!$H$35*C_L -> 0.4134586133 | CL170: =((-0.178321*CL149^3)-(0.241023*CL149^2)-(0.353808*CL149)+0.814627)*'Mason''s Curve'!$H$35*C_L -> 0.3926809059 | CM170: =((-0.178321*CM149^3)-(0.241023*CM149^2)-(0.353808*CM149)+0.814627)*'Mason''s Curve'!$H$35*C_L -> 0.3716513982 | CN170: =((-0.178321*CN149^3)-(0.241023*CN149^2)-(0.353808*CN149)+0.814627)*'Mason''s Curve'!$H$35*C_L -> 0.3503681688 | CO170: =((-0.178321*CO149^3)-(0.241023*CO149^2)-(0.353808*CO149)+0.814627)*'Mason''s Curve'!$H$35*C_L -> 0.3288292964 | CP170: =((-0.178321*CP149^3)-(0.241023*CP149^2)-(0.353808*CP149)+0.814627)*'Mason''s Curve'!$H$35*C_L -> 0.3070328595 | CQ170: =((-0.178321*CQ149^3)-(0.241023*CQ149^2)-(0.353808*CQ149)+0.814627)*'Mason''s Curve'!$H$35*C_L -> 0.3048389758 | CR170: =((-0.178321*CR149^3)-(0.241023*CR149^2)-(0.353808*CR149)+0.814627)*'Mason''s Curve'!$H$35*C_L -> 0.3026424954 | CS170: =((-0.178321*CS149^3)-(0.241023*CS149^2)-(0.353808*CS149)+0.814627)*'Mason''s Curve'!$H$35*C_L -> 0.3004434162 | CT170: =((-0.178321*CT149^3)-(0.241023*CT149^2)-(0.353808*CT149)+0.814627)*'Mason''s Curve'!$H$35*C_L -> 0.2982417364 | CU170: =((-0.178321*CU149^3)-(0.241023*CU149^2)-(0.353808*CU149)+0.814627)*'Mason''s Curve'!$H$35*C_L -> 0.2960374541 | CV170: =((-0.178321*CV149^3)-(0.241023*CV149^2)-(0.353808*CV149)+0.814627)*'Mason''s Curve'!$H$35*C_L -> 0.2938305673 | CW170: =((-0.178321*CW149^3)-(0.241023*CW149^2)-(0.353808*CW149)+0.814627)*'Mason''s Curve'!$H$35*C_L -> 0.2916210741 | CX170: =((-0.178321*CX149^3)-(0.241023*CX149^2)-(0.353808*CX149)+0.814627)*'Mason''s Curve'!$H$35*C_L -> 0.2894089726 | CY170: =((-0.178321*CY149^3)-(0.241023*CY149^2)-(0.353808*CY149)+0.814627)*'Mason''s Curve'!$H$35*C_L -> 0.2871942608 | CZ170: =((-0.178321*CZ149^3)-(0.241023*CZ149^2)-(0.353808*CZ149)+0.814627)*'Mason''s Curve'!$H$35*C_L -> 0.284976937 | DA170: =((-0.178321*DA149^3)-(0.241023*DA149^2)-(0.353808*DA149)+0.814627)*'Mason''s Curve'!$H$35*C_L -> 0.282756999 | DB170: =((-0.178321*DB149^3)-(0.241023*DB149^2)-(0.353808*DB149)+0.814627)*'Mason''s Curve'!$H$35*C_L -> 0.2805344451 | DC170: =((-0.178321*DC149^3)-(0.241023*DC149^2)-(0.353808*DC149)+0.814627)*'Mason''s Curve'!$H$35*C_L -> 0.2783092732 | DD170: =((-0.178321*DD149^3)-(0.241023*DD149^2)-(0.353808*DD149)+0.814627)*'Mason''s Curve'!$H$35*C_L -> 0.2760814815 | DE170: =((-0.178321*DE149^3)-(0.241023*DE149^2)-(0.353808*DE149)+0.814627)*'Mason''s Curve'!$H$35*C_L -> 0.2738510681 | DF170: =((-0.178321*DF149^3)-(0.241023*DF149^2)-(0.353808*DF149)+0.814627)*'Mason''s Curve'!$H$35*C_L -> 0.271618031 | DG170: =((-0.178321*DG149^3)-(0.241023*DG149^2)-(0.353808*DG149)+0.814627)*'Mason''s Curve'!$H$35*C_L -> 0.2693823683 | DH170: =((-0.178321*DH149^3)-(0.241023*DH149^2)-(0.353808*DH149)+0.814627)*'Mason''s Curve'!$H$35*C_L -> 0.267144078 | DI170: =((-0.178321*DI149^3)-(0.241023*DI149^2)-(0.353808*DI149)+0.814627)*'Mason''s Curve'!$H$35*C_L -> 0.2649031584 | DJ170: =((-0.178321*DJ149^3)-(0.241023*DJ149^2)-(0.353808*DJ149)+0.814627)*'Mason''s Curve'!$H$35*C_L -> 0.2626596073 | DK170: =((-0.178321*DK149^3)-(0.241023*DK149^2)-(0.353808*DK149)+0.814627)*'Mason''s Curve'!$H$35*C_L -> 0.260413423 | DL170: =((-0.178321*DL149^3)-(0.241023*DL149^2)-(0.353808*DL149)+0.814627)*'Mason''s Curve'!$H$35*C_L -> 0.2581646034 | DM170: =((-0.178321*DM149^3)-(0.241023*DM149^2)-(0.353808*DM149)+0.814627)*'Mason''s Curve'!$H$35*C_L -> 0.2559131468 | DN170: =((-0.178321*DN149^3)-(0.241023*DN149^2)-(0.353808*DN149)+0.814627)*'Mason''s Curve'!$H$35*C_L -> 0.2536590511 | DO170: =((-0.178321*DO149^3)-(0.241023*DO149^2)-(0.353808*DO149)+0.814627)*'Mason''s Curve'!$H$35*C_L -> 0.2514023144 | DP170: =((-0.178321*DP149^3)-(0.241023*DP149^2)-(0.353808*DP149)+0.814627)*'Mason''s Curve'!$H$35*C_L -> 0.2491429348 | DQ170: =((-0.178321*DQ149^3)-(0.241023*DQ149^2)-(0.353808*DQ149)+0.814627)*'Mason''s Curve'!$H$35*C_L -> 0.2468809105 | DR170: =((-0.178321*DR149^3)-(0.241023*DR149^2)-(0.353808*DR149)+0.814627)*'Mason''s Curve'!$H$35*C_L -> 0.2446162393 | DS170: =((-0.178321*DS149^3)-(0.241023*DS149^2)-(0.353808*DS149)+0.814627)*'Mason''s Curve'!$H$35*C_L -> 0.2423489196 | DT170: =((-0.178321*DT149^3)-(0.241023*DT149^2)-(0.353808*DT149)+0.814627)*'Mason''s Curve'!$H$35*C_L -> 0.2400789492 | DU170: =((-0.178321*DU149^3)-(0.241023*DU149^2)-(0.353808*DU149)+0.814627)*'Mason''s Curve'!$H$35*C_L -> 0.2378063264 | DV170: =((-0.178321*DV149^3)-(0.241023*DV149^2)-(0.353808*DV149)+0.814627)*'Mason''s Curve'!$H$35*C_L -> 0.2355310491 | DW170: =((-0.178321*DW149^3)-(0.241023*DW149^2)-(0.353808*DW149)+0.814627)*'Mason''s Curve'!$H$35*C_L -> 0.2332531155 | DX170: =((-0.178321*DX149^3)-(0.241023*DX149^2)-(0.353808*DX149)+0.814627)*'Mason''s Curve'!$H$35*C_L -> 0.2309725236 | DY170: =((-0.178321*DY149^3)-(0.241023*DY149^2)-(0.353808*DY149)+0.814627)*'Mason''s Curve'!$H$35*C_L -> 0.2286892716 | DZ170: =((-0.178321*DZ149^3)-(0.241023*DZ149^2)-(0.353808*DZ149)+0.814627)*'Mason''s Curve'!$H$35*C_L -> 0.2264033574 | EA170: =((-0.178321*EA149^3)-(0.241023*EA149^2)-(0.353808*EA149)+0.814627)*'Mason''s Curve'!$H$35*C_L -> 0.2241147793 | EB170: =((-0.178321*EB149^3)-(0.241023*EB149^2)-(0.353808*EB149)+0.814627)*'Mason''s Curve'!$H$35*C_L -> 0.2218235351 | EC170: =((-0.178321*EC149^3)-(0.241023*EC149^2)-(0.353808*EC149)+0.814627)*'Mason''s Curve'!$H$35*C_L -> 0.2195296231 | ED170: =((-0.178321*ED149^3)-(0.241023*ED149^2)-(0.353808*ED149)+0.814627)*'Mason''s Curve'!$H$35*C_L -> 0.2172330414 | EE170: =((-0.178321*EE149^3)-(0.241023*EE149^2)-(0.353808*EE149)+0.814627)*'Mason''s Curve'!$H$35*C_L -> 0.2149337879 | EF170: =((-0.178321*EF149^3)-(0.241023*EF149^2)-(0.353808*EF149)+0.814627)*'Mason''s Curve'!$H$35*C_L -> 0.2126318607 | EG170: =((-0.178321*EG149^3)-(0.241023*EG149^2)-(0.353808*EG149)+0.814627)*'Mason''s Curve'!$H$35*C_L -> 0.2103272581 | EH170: =((-0.178321*EH149^3)-(0.241023*EH149^2)-(0.353808*EH149)+0.814627)*'Mason''s Curve'!$H$35*C_L -> 0.2080199779 | EI170: =((-0.178321*EI149^3)-(0.241023*EI149^2)-(0.353808*EI149)+0.814627)*'Mason''s Curve'!$H$35*C_L -> 0.2057100183 | EJ170: =((-0.178321*EJ149^3)-(0.241023*EJ149^2)-(0.353808*EJ149)+0.814627)*'Mason''s Curve'!$H$35*C_L -> 0.2033973775 | EK170: =((-0.178321*EK149^3)-(0.241023*EK149^2)-(0.353808*EK149)+0.814627)*'Mason''s Curve'!$H$35*C_L -> 0.2010820534 | EL170: =((-0.178321*EL149^3)-(0.241023*EL149^2)-(0.353808*EL149)+0.814627)*'Mason''s Curve'!$H$35*C_L -> 0.1987640441 | EM170: =((-0.178321*EM149^3)-(0.241023*EM149^2)-(0.353808*EM149)+0.814627)*'Mason''s Curve'!$H$35*C_L -> 0.1964433477 | EN170: =((-0.178321*EN149^3)-(0.241023*EN149^2)-(0.353808*EN149)+0.814627)*'Mason''s Curve'!$H$35*C_L -> 0.1941199624 | EO170: =((-0.178321*EO149^3)-(0.241023*EO149^2)-(0.353808*EO149)+0.814627)*'Mason''s Curve'!$H$35*C_L -> 0.1917938861 | EP170: =((-0.178321*EP149^3)-(0.241023*EP149^2)-(0.353808*EP149)+0.814627)*'Mason''s Curve'!$H$35*C_L -> 0.189465117 | EQ170: =((-0.178321*EQ149^3)-(0.241023*EQ149^2)-(0.353808*EQ149)+0.814627)*'Mason''s Curve'!$H$35*C_L -> 0.1871336531 | ER170: =((-0.178321*ER149^3)-(0.241023*ER149^2)-(0.353808*ER149)+0.814627)*'Mason''s Curve'!$H$35*C_L -> 0.1847994925 | ES170: =((-0.178321*ES149^3)-(0.241023*ES149^2)-(0.353808*ES149)+0.814627)*'Mason''s Curve'!$H$35*C_L -> 0.1824626333 | ET170: =((-0.178321*ET149^3)-(0.241023*ET149^2)-(0.353808*ET149)+0.814627)*'Mason''s Curve'!$H$35*C_L -> 0.1801230736 | EU170: =((-0.178321*EU149^3)-(0.241023*EU149^2)-(0.353808*EU149)+0.814627)*'Mason''s Curve'!$H$35*C_L -> 0.1777808114 | EV170: =((-0.178321*EV149^3)-(0.241023*EV149^2)-(0.353808*EV149)+0.814627)*'Mason''s Curve'!$H$35*C_L -> 0.1754358448 | EW170: =((-0.178321*EW149^3)-(0.241023*EW149^2)-(0.353808*EW149)+0.814627)*'Mason''s Curve'!$H$35*C_L -> 0.173088172 | EX170: =((-0.178321*EX149^3)-(0.241023*EX149^2)-(0.353808*EX149)+0.814627)*'Mason''s Curve'!$H$35*C_L -> 0.1707377909 | EY170: =((-0.178321*EY149^3)-(0.241023*EY149^2)-(0.353808*EY149)+0.814627)*'Mason''s Curve'!$H$35*C_L -> 0.1683846997 | EZ170: =((-0.178321*EZ149^3)-(0.241023*EZ149^2)-(0.353808*EZ149)+0.814627)*'Mason''s Curve'!$H$35*C_L -> 0.1660288965 | FA170: =((-0.178321*FA149^3)-(0.241023*FA149^2)-(0.353808*FA149)+0.814627)*'Mason''s Curve'!$H$35*C_L -> 0.1636703792 | FB170: =((-0.178321*FB149^3)-(0.241023*FB149^2)-(0.353808*FB149)+0.814627)*'Mason''s Curve'!$H$35*C_L -> 0.1613091461 | FC170: =((-0.178321*FC149^3)-(0.241023*FC149^2)-(0.353808*FC149)+0.814627)*'Mason''s Curve'!$H$35*C_L -> 0.1589451951 | FD170: =((-0.178321*FD149^3)-(0.241023*FD149^2)-(0.353808*FD149)+0.814627)*'Mason''s Curve'!$H$35*C_L -> 0.1565785244 | FE170: =((-0.178321*FE149^3)-(0.241023*FE149^2)-(0.353808*FE149)+0.814627)*'Mason''s Curve'!$H$35*C_L -> 0.154209132 | FF170: =((-0.178321*FF149^3)-(0.241023*FF149^2)-(0.353808*FF149)+0.814627)*'Mason''s Curve'!$H$35*C_L -> 0.151837016 | FG170: =((-0.178321*FG149^3)-(0.241023*FG149^2)-(0.353808*FG149)+0.814627)*'Mason''s Curve'!$H$35*C_L -> 0.1494621746 | FH170: =((-0.178321*FH149^3)-(0.241023*FH149^2)-(0.353808*FH149)+0.814627)*'Mason''s Curve'!$H$35*C_L -> 0.1470846057 | FI170: =((-0.178321*FI149^3)-(0.241023*FI149^2)-(0.353808*FI149)+0.814627)*'Mason''s Curve'!$H$35*C_L -> 0.1447043074 | FJ170: =((-0.178321*FJ149^3)-(0.241023*FJ149^2)-(0.353808*FJ149)+0.814627)*'Mason''s Curve'!$H$35*C_L -> 0.1423212779 | FK170: =((-0.178321*FK149^3)-(0.241023*FK149^2)-(0.353808*FK149)+0.814627)*'Mason''s Curve'!$H$35*C_L -> 0.1399355151 | FL170: =((-0.178321*FL149^3)-(0.241023*FL149^2)-(0.353808*FL149)+0.814627)*'Mason''s Curve'!$H$35*C_L -> 0.1375470173 | FM170: =((-0.178321*FM149^3)-(0.241023*FM149^2)-(0.353808*FM149)+0.814627)*'Mason''s Curve'!$H$35*C_L -> 0.1351557824 | FN170: =((-0.178321*FN149^3)-(0.241023*FN149^2)-(0.353808*FN149)+0.814627)*'Mason''s Curve'!$H$35*C_L -> 0.1327618086 | FO170: =((-0.178321*FO149^3)-(0.241023*FO149^2)-(0.353808*FO149)+0.814627)*'Mason''s Curve'!$H$35*C_L -> 0.1303650939 | FP170: =((-0.178321*FP149^3)-(0.241023*FP149^2)-(0.353808*FP149)+0.814627)*'Mason''s Curve'!$H$35*C_L -> 0.1279656364 | FQ170: =((-0.178321*FQ149^3)-(0.241023*FQ149^2)-(0.353808*FQ149)+0.814627)*'Mason''s Curve'!$H$35*C_L -> 0.1255634341 | FR170: =((-0.178321*FR149^3)-(0.241023*FR149^2)-(0.353808*FR149)+0.814627)*'Mason''s Curve'!$H$35*C_L -> 0.1231584852 | FS170: =((-0.178321*FS149^3)-(0.241023*FS149^2)-(0.353808*FS149)+0.814627)*'Mason''s Curve'!$H$35*C_L -> 0.1207507878 | FT170: =((-0.178321*FT149^3)-(0.241023*FT149^2)-(0.353808*FT149)+0.814627)*'Mason''s Curve'!$H$35*C_L -> 0.1183403398 | FU170: =((-0.178321*FU149^3)-(0.241023*FU149^2)-(0.353808*FU149)+0.814627)*'Mason''s Curve'!$H$35*C_L -> 0.1159271395 | FV170: =((-0.178321*FV149^3)-(0.241023*FV149^2)-(0.353808*FV149)+0.814627)*'Mason''s Curve'!$H$35*C_L -> 0.1135111848 | FW170: =((-0.178321*FW149^3)-(0.241023*FW149^2)-(0.353808*FW149)+0.814627)*'Mason''s Curve'!$H$35*C_L -> 0.1110924739 | FX170: =((-0.178321*FX149^3)-(0.241023*FX149^2)-(0.353808*FX149)+0.814627)*'Mason''s Curve'!$H$35*C_L -> 0.1086710048 | FY170: =((-0.178321*FY149^3)-(0.241023*FY149^2)-(0.353808*FY149)+0.814627)*'Mason''s Curve'!$H$35*C_L -> 0.1062467756 | FZ170: =((-0.178321*FZ149^3)-(0.241023*FZ149^2)-(0.353808*FZ149)+0.814627)*'Mason''s Curve'!$H$35*C_L -> 0.1038197844 | GA170: =((-0.178321*GA149^3)-(0.241023*GA149^2)-(0.353808*GA149)+0.814627)*'Mason''s Curve'!$H$35*C_L -> 0.1013900293 | GB170: =((-0.178321*GB149^3)-(0.241023*GB149^2)-(0.353808*GB149)+0.814627)*'Mason''s Curve'!$H$35*C_L -> 0.0989575083 | GC170: =((-0.178321*GC149^3)-(0.241023*GC149^2)-(0.353808*GC149)+0.814627)*'Mason''s Curve'!$H$35*C_L -> 0.09652221953 | GD170: =((-0.178321*GD149^3)-(0.241023*GD149^2)-(0.353808*GD149)+0.814627)*'Mason''s Curve'!$H$35*C_L -> 0.09408416106 | GE170: =((-0.178321*GE149^3)-(0.241023*GE149^2)-(0.353808*GE149)+0.814627)*'Mason''s Curve'!$H$35*C_L -> 0.09164333096 | GF170: =((-0.178321*GF149^3)-(0.241023*GF149^2)-(0.353808*GF149)+0.814627)*'Mason''s Curve'!$H$35*C_L -> 0.08919972733 | GG170: =((-0.178321*GG149^3)-(0.241023*GG149^2)-(0.353808*GG149)+0.814627)*'Mason''s Curve'!$H$35*C_L -> 0.08675334823 | GH170: =((-0.178321*GH149^3)-(0.241023*GH149^2)-(0.353808*GH149)+0.814627)*'Mason''s Curve'!$H$35*C_L -> 0.08430419174 | GI170: =((-0.178321*GI149^3)-(0.241023*GI149^2)-(0.353808*GI149)+0.814627)*'Mason''s Curve'!$H$35*C_L -> 0.08185225595 | GJ170: =((-0.178321*GJ149^3)-(0.241023*GJ149^2)-(0.353808*GJ149)+0.814627)*'Mason''s Curve'!$H$35*C_L -> 0.07939753893 | GK170: =((-0.178321*GK149^3)-(0.241023*GK149^2)-(0.353808*GK149)+0.814627)*'Mason''s Curve'!$H$35*C_L -> 0.07694003876 | GL170: =((-0.178321*GL149^3)-(0.241023*GL149^2)-(0.353808*GL149)+0.814627)*'Mason''s Curve'!$H$35*C_L -> 0.07447975352
B171: Error | D171: =(D170-D165)^2 -> 0.02725772456 | E171: 0.0261364528 | F171: 0.02493894407 | G171: 0.02368106636 | H171: 0.02237784709 | I171: 0.02104339741 | J171: 0.01969085959 | K171: 0.01833237461 | L171: 0.01697906725 | M171: 0.01564104608 | N171: 0.01432741617 | O171: 0.01304630245 | P171: 0.01180488191 | Q171: 0.0106094228 | R171: 0.009465329604 | S171: 0.008377192226 | T171: 0.00734883836 | U171: 0.006383387911 | V171: 0.005483308596 | W171: 0.004650471935 | X171: 0.00388620893 | Y171: 0.003191364854 | Z171: 0.002566352661 | AA171: 0.002011204597 | AB171: 0.001525621681 | AC171: 0.001109020779 | AD171: 0.0007605790671 | AE171: 0.0004792757243 | AF171: 0.0002639307347 | AG171: 0.0001132407427 | AH171: 2.581191495e-05 | AI171: 1.898068017e-07 | AJ171: =(AJ170-AJ165)^2 -> 3.488625256e-05 | AK171: 0.0001284033176 | AL171: 0.0002792543687 | AM171: 0.0004859823304 | AN171: 0.000747175204 | AO171: 0.001061478932 | AP171: 0.001427607694 | AQ171: 0.001844351718 | AR171: 0.002310582696 | AS171: 0.002825256875 | AT171: 0.00338741591 | AU171: 0.003996185538 | AV171: 0.004650772136 | AW171: 0.005350457217 | AX171: 0.006094589907 | AY171: 0.006882577429 | AZ171: 0.00771387363 | BA171: 0.008587965555 | BB171: 0.009504358083 | BC171: 0.01046255662 | BD171: 0.01146204783 | BE171: 0.01250227845 | BF171: 0.01358263202 | BG171: 0.01470240374 | BH171: 0.01586077321 | BI171: 0.01705677517 | BJ171: 0.01828926818 | BK171: 0.0195569012 | BL171: 0.02085807816 | BM171: 0.02219092043 | BN171: 0.02355322726 | BO171: 0.02494243429 | BP171: =(BP170-BP165)^2 -> 0.02635557004 | BQ171: 0.02778921066 | BR171: 0.02923943293 | BS171: 0.03070176567 | BT171: 0.03217113978 | BU171: 0.03364183719 | BV171: 0.03510743876 | BW171: 0.03656077179 | BX171: 0.03799385716 | BY171: 0.0393978567 | BZ171: 0.04076302129 | CA171: 0.04207864001 | CB171: 0.04333299117 | CC171: 0.0445132956 | CD171: 0.04560567309 | CE171: 0.0465951025 | CF171: 0.04746538637 | CG171: 0.04819912063 | CH171: 0.04877767013 | CI171: 0.04918115038 | CJ171: 0.04938841569 | CK171: 0.04937705345 | CL171: 0.04912338339 | CM171: 0.04860245952 | CN171: 0.04778806976 | CO171: 0.046652725 | CP171: 0.04516762222 | CQ171: 0.04499872524 | CR171: 0.04482599888 | CS171: 0.04464941197 | CT171: 0.04446893316 | CU171: 0.04428453097 | CV171: =(CV170-CV165)^2 -> 0.0440961737 | CW171: 0.04390382952 | CX171: 0.0437074664 | CY171: 0.04350705215 | CZ171: 0.04330255437 | DA171: 0.04309394051 | DB171: 0.04288117779 | DC171: 0.04266423325 | DD171: 0.04244307372 | DE171: 0.04221766583 | DF171: 0.04198797599 | DG171: 0.04175397038 | DH171: 0.04151561496 | DI171: 0.04127287544 | DJ171: 0.0410257173 | DK171: 0.04077410575 | DL171: 0.04051800574 | DM171: 0.04025738195 | DN171: 0.03999219878 | DO171: 0.03972242031 | DP171: 0.03944801032 | DQ171: 0.03916893228 | DR171: 0.0388851493 | DS171: 0.03859662416 | DT171: 0.03830331925 | DU171: 0.03800519657 | DV171: 0.03770221772 | DW171: 0.03739434389 | DX171: 0.03708153577 | DY171: 0.03676375363 | DZ171: 0.0364409572 | EA171: 0.0361131057 | EB171: =(EB170-EB165)^2 -> 0.03578015778 | EC171: 0.03544207151 | ED171: 0.03509880433 | EE171: 0.034750313 | EF171: 0.0343965536 | EG171: 0.03403748145 | EH171: 0.03367305107 | EI171: 0.03330321612 | EJ171: 0.03292792937 | EK171: 0.03254714261 | EL171: 0.03216080661 | EM171: 0.03176887101 | EN171: 0.03137128427 | EO171: 0.03096799359 | EP171: 0.03055894477 | EQ171: 0.03014408215 | ER171: 0.02972334849 | ES171: 0.0292966848 | ET171: 0.02886403027 | EU171: 0.02842532207 | EV171: 0.02798049517 | EW171: 0.02752948221 | EX171: 0.02707221322 | EY171: 0.02660861544 | EZ171: 0.02613861305 | FA171: 0.02566212687 | FB171: 0.02517907404 | FC171: 0.02468936765 | FD171: 0.02419291636 | FE171: 0.02368962388 | FF171: 0.0231793885 | FG171: 0.02266210247 | FH171: =(FH170-FH165)^2 -> 0.02213765129 | FI171: 0.02160591295 | FJ171: 0.02106675702 | FK171: 0.02052004357 | FL171: 0.01996562201 | FM171: 0.01940332958 | FN171: 0.01883298971 | FO171: 0.01825441003 | FP171: 0.01766737994 | FQ171: 0.0170716678 | FR171: 0.01646701744 | FS171: 0.01585314394 | FT171: 0.01522972836 | FU171: 0.0145964113 | FV171: 0.01395278462 | FW171: 0.01329838093 | FX171: 0.01263265998 | FY171: 0.01195499062 | FZ171: 0.01126462661 | GA171: 0.01056067324 | GB171: 0.009842040413 | GC171: 0.009107374235 | GD171: 0.00835495412 | GE171: 0.007582530734 | GF171: 0.006787056808 | GG171: 0.005964207895 | GH171: 0.005107446959 | GI171: 0.004205946713 | GJ171: 0.003238963131 | GK171: 0.002153985672 | GL171: 0.0004158489043 | GM171: =SUM(D171:GL171) -> 4.60009909
B173: Triangular lift distribution function | D173: =((-2*D149)+2)*C_L -> 2 | E173: 1.98 | F173: 1.96 | G173: 1.94 | H173: 1.92 | I173: 1.9 | J173: 1.88 | K173: 1.86 | L173: 1.84 | M173: 1.82 | N173: 1.8 | O173: 1.78 | P173: 1.76 | Q173: 1.74 | R173: 1.72 | S173: 1.7 | T173: 1.68 | U173: 1.66 | V173: 1.64 | W173: 1.62 | X173: 1.6 | Y173: 1.58 | Z173: 1.56 | AA173: 1.54 | AB173: 1.52 | AC173: 1.5 | AD173: 1.48 | AE173: 1.46 | AF173: 1.44 | AG173: 1.42 | AH173: 1.4 | AI173: 1.38 | AJ173: =((-2*AJ149)+2)*C_L -> 1.36 | AK173: 1.34 | AL173: 1.32 | AM173: 1.3 | AN173: 1.28 | AO173: 1.26 | AP173: 1.24 | AQ173: 1.22 | AR173: 1.2 | AS173: 1.18 | AT173: 1.16 | AU173: 1.14 | AV173: 1.12 | AW173: 1.1 | AX173: 1.08 | AY173: 1.06 | AZ173: 1.04 | BA173: 1.02 | BB173: 1 | BC173: 0.98 | BD173: 0.96 | BE173: 0.94 | BF173: 0.92 | BG173: 0.9 | BH173: 0.88 | BI173: 0.86 | BJ173: 0.84 | BK173: 0.82 | BL173: 0.8 | BM173: 0.78 | BN173: 0.76 | BO173: 0.74 | BP173: =((-2*BP149)+2)*C_L -> 0.72 | BQ173: 0.7 | BR173: 0.68 | BS173: 0.66 | BT173: 0.64 | BU173: 0.62 | BV173: 0.6 | BW173: 0.58 | BX173: 0.56 | BY173: 0.54 | BZ173: 0.52 | CA173: 0.5 | CB173: 0.48 | CC173: 0.46 | CD173: 0.44 | CE173: 0.42 | CF173: 0.4 | CG173: 0.38 | CH173: 0.36 | CI173: 0.34 | CJ173: 0.32 | CK173: 0.3 | CL173: 0.28 | CM173: 0.26 | CN173: 0.24 | CO173: 0.22 | CP173: 0.2 | CQ173: 0.198 | CR173: 0.196 | CS173: 0.194 | CT173: 0.192 | CU173: 0.19 | CV173: =((-2*CV149)+2)*C_L -> 0.188 | CW173: 0.186 | CX173: 0.184 | CY173: 0.182 | CZ173: 0.18 | DA173: 0.178 | DB173: 0.176 | DC173: 0.174 | DD173: 0.172 | DE173: 0.17 | DF173: 0.168 | DG173: 0.166 | DH173: 0.164 | DI173: 0.162 | DJ173: 0.16 | DK173: 0.158 | DL173: 0.156 | DM173: 0.154 | DN173: 0.152 | DO173: 0.15 | DP173: 0.148 | DQ173: 0.146 | DR173: 0.144 | DS173: 0.142 | DT173: 0.14 | DU173: 0.138 | DV173: 0.136 | DW173: 0.134 | DX173: 0.132 | DY173: 0.13 | DZ173: 0.128 | EA173: 0.126 | EB173: =((-2*EB149)+2)*C_L -> 0.124 | EC173: 0.122 | ED173: 0.12 | EE173: 0.118 | EF173: 0.116 | EG173: 0.114 | EH173: 0.112 | EI173: 0.11 | EJ173: 0.108 | EK173: 0.106 | EL173: 0.104 | EM173: 0.102 | EN173: 0.1 | EO173: 0.098 | EP173: 0.096 | EQ173: 0.094 | ER173: 0.092 | ES173: 0.09 | ET173: 0.088 | EU173: 0.086 | EV173: 0.084 | EW173: 0.082 | EX173: 0.08 | EY173: 0.078 | EZ173: 0.076 | FA173: 0.074 | FB173: 0.072 | FC173: 0.07 | FD173: 0.068 | FE173: 0.066 | FF173: 0.064 | FG173: 0.062 | FH173: =((-2*FH149)+2)*C_L -> 0.06 | FI173: 0.058 | FJ173: 0.056 | FK173: 0.054 | FL173: 0.052 | FM173: 0.05 | FN173: 0.048 | FO173: 0.046 | FP173: 0.044 | FQ173: 0.042 | FR173: 0.04 | FS173: 0.038 | FT173: 0.036 | FU173: 0.034 | FV173: 0.032 | FW173: 0.03 | FX173: 0.028 | FY173: 0.026 | FZ173: 0.024 | GA173: 0.022 | GB173: 0.02 | GC173: 0.018 | GD173: 0.016 | GE173: 0.014 | GF173: 0.012 | GG173: 0.01 | GH173: 0.008 | GI173: 0.006 | GJ173: 0.004 | GK173: 0.002 | GL173: 0
B174: Error | D174: =(D173-D165)^2 -> 0.4931025657 | E174: =(E173-E165)^2 -> 0.4694694484 | F174: 0.4461131921 | G174: 0.4230969016 | H174: 0.4004777881 | I174: 0.378307376 | J174: 0.3566317237 | K174: 0.3354916563 | L174: 0.3149230068 | M174: 0.2949568636 | N174: 0.2756198226 | O174: 0.2569342407 | P174: 0.2389184898 | Q174: 0.2215872098 | R174: 0.2049515582 | S174: 0.1890194562 | T174: 0.173795829 | U174: 0.1592828404 | V174: 0.1454801207 | W174: 0.1323849861 | X174: 0.1199926502 | Y174: 0.1082964274 | Z174: 0.09728792603 | AA174: 0.08695723276 | AB174: 0.07729308732 | AC174: 0.06828304722 | AD174: 0.05991364265 | AE174: 0.05217052158 | AF174: 0.04503858497 | AG174: 0.03850211213 | AH174: 0.03254487655 | AI174: 0.02715025216 | AJ174: 0.02230131032 | AK174: 0.01798090769 | AL174: 0.0141717653 | AM174: 0.01085653897 | AN174: 0.008017881447 | AO174: 0.005638496453 | AP174: 0.003701185025 | AQ174: 0.00218888435 | AR174: 0.001084699455 | AS174: 0.0003719280292 | AT174: 3.407867417e-05 | AU174: 5.48828955e-05 | AV174: 0.0004183011135 | AW174: 0.001108522995 | AX174: 0.002109962393 | AY174: 0.003407247166 | AZ174: 0.00498520418 | BA174: 0.006828839735 | BB174: 0.008923315716 | BC174: 0.01125392171 | BD174: 0.0138060434 | BE174: 0.0165651274 | BF174: 0.01951664294 | BG174: 0.02264604055 | BH174: 0.02593870807 | BI174: 0.02937992419 | BJ174: 0.03295480997 | BK174: 0.03664827842 | BL174: 0.04044498257 | BM174: 0.04432926242 | BN174: 0.04828509087 | BO174: 0.05229601929 | BP174: 0.05634512289 | BQ174: =(BQ173-BQ165)^2 -> 0.06041494638 | BR174: 0.0644874504 | BS174: 0.06854395916 | BT174: 0.07256510974 | BU174: 0.07653080374 | BV174: 0.08042016175 | BW174: 0.08421148129 | BX174: 0.0878821989 | BY174: 0.09140885719 | BZ174: 0.09476707734 | CA174: 0.09793153812 | CB174: 0.100875962 | CC174: 0.1035731092 | CD174: 0.1059947804 | CE174: 0.108111829 | CF174: 0.1098941829 | CG174: 0.1113108768 | CH174: 0.112330094 | CI174: 0.1129192175 | CJ174: 0.1130448888 | CK174: 0.1126730695 | CL174: 0.1117691012 | CM174: 0.1102977517 | CN174: 0.108223231 | CO174: 0.1055091467 | CP174: 0.1021183482 | CQ174: 0.1017405886 | CR174: 0.1013556415 | CS174: 0.1009634679 | CT174: 0.1005640284 | CU174: 0.1001572832 | CV174: 0.09974319259 | CW174: 0.09932171653 | CX174: 0.09889281472 | CY174: 0.0984564466 | CZ174: 0.09801257138 | DA174: 0.09756114795 | DB174: 0.09710213491 | DC174: 0.09663549053 | DD174: 0.09616117277 | DE174: 0.09567913919 | DF174: 0.09518934699 | DG174: 0.09469175297 | DH174: 0.09418631348 | DI174: 0.09367298443 | DJ174: 0.09315172122 | DK174: 0.09262247876 | DL174: 0.09208521139 | DM174: 0.09153987288 | DN174: 0.09098641636 | DO174: 0.09042479431 | DP174: 0.08985495849 | DQ174: 0.08927685993 | DR174: 0.08869044883 | DS174: 0.08809567458 | DT174: 0.0874924856 | DU174: 0.08688082938 | DV174: 0.08626065237 | DW174: 0.08563189989 | DX174: 0.0849945161 | DY174: 0.08434844387 | DZ174: 0.08369362475 | EA174: 0.08302999881 | EB174: 0.08235750459 | EC174: =(EC173-EC165)^2 -> 0.08167607896 | ED174: 0.08098565703 | EE174: 0.08028617196 | EF174: 0.07957755492 | EG174: 0.07885973483 | EH174: 0.07813263828 | EI174: 0.0773961893 | EJ174: 0.0766503092 | EK174: 0.07589491632 | EL174: 0.07512992585 | EM174: 0.07435524953 | EN174: 0.0735707954 | EO174: 0.07277646751 | EP174: 0.07197216555 | EQ174: 0.07115778453 | ER174: 0.07033321434 | ES174: 0.06949833935 | ET174: 0.06865303789 | EU174: 0.06779718173 | EV174: 0.06693063549 | EW174: 0.06605325593 | EX174: 0.06516489128 | EY174: 0.06426538036 | EZ174: 0.06335455169 | FA174: 0.06243222241 | FB174: 0.06149819717 | FC174: 0.06055226677 | FD174: 0.0595942067 | FE174: 0.05862377541 | FF174: 0.05764071243 | FG174: 0.05664473609 | FH174: 0.05563554105 | FI174: 0.05461279536 | FJ174: 0.05357613703 | FK174: 0.05252517012 | FL174: 0.05145946011 | FM174: 0.05037852845 | FN174: 0.04928184617 | FO174: 0.04816882614 | FP174: 0.04703881393 | FQ174: 0.0458910767 | FR174: 0.04472478959 | FS174: 0.04353901916 | FT174: 0.04233270262 | FU174: 0.04110462195 | FV174: 0.03985337085 | FW174: 0.03857731237 | FX174: 0.03727452336 | FY174: 0.03594272072 | FZ174: 0.0345791615 | GA174: 0.03318050436 | GB174: 0.03174261279 | GC174: 0.03026026665 | GD174: 0.02872672423 | GE174: 0.02713302731 | GF174: 0.02546683693 | GG174: 0.02371034315 | GH174: 0.02183614909 | GI174: 0.01979804521 | GJ174: 0.01750578477 | GK174: 0.01472608703 | GL174: 0.00900072052 | GM174: =SUM(D174:GL174) -> 16.64492593
B176: Maximum section lift of the airfoil | C176: clmax | D176: =(c_l.max.t-c_l.max.r)*D149+c_l.max.r -> 1.6 | E176: 1.594 | F176: 1.588 | G176: 1.582 | H176: 1.576 | I176: 1.57 | J176: 1.564 | K176: 1.558 | L176: 1.552 | M176: 1.546 | N176: 1.54 | O176: 1.534 | P176: 1.528 | Q176: 1.522 | R176: 1.516 | S176: 1.51 | T176: 1.504 | U176: 1.498 | V176: 1.492 | W176: 1.486 | X176: 1.48 | Y176: 1.474 | Z176: 1.468 | AA176: 1.462 | AB176: 1.456 | AC176: 1.45 | AD176: 1.444 | AE176: 1.438 | AF176: 1.432 | AG176: 1.426 | AH176: 1.42 | AI176: 1.414 | AJ176: =(c_l.max.t-c_l.max.r)*AJ149+c_l.max.r -> 1.408 | AK176: 1.402 | AL176: 1.396 | AM176: 1.39 | AN176: 1.384 | AO176: 1.378 | AP176: 1.372 | AQ176: 1.366 | AR176: 1.36 | AS176: 1.354 | AT176: 1.348 | AU176: 1.342 | AV176: 1.336 | AW176: 1.33 | AX176: 1.324 | AY176: 1.318 | AZ176: 1.312 | BA176: 1.306 | BB176: 1.3 | BC176: 1.294 | BD176: 1.288 | BE176: 1.282 | BF176: 1.276 | BG176: 1.27 | BH176: 1.264 | BI176: 1.258 | BJ176: 1.252 | BK176: 1.246 | BL176: 1.24 | BM176: 1.234 | BN176: 1.228 | BO176: 1.222 | BP176: =(c_l.max.t-c_l.max.r)*BP149+c_l.max.r -> 1.216 | BQ176: 1.21 | BR176: 1.204 | BS176: 1.198 | BT176: 1.192 | BU176: 1.186 | BV176: 1.18 | BW176: 1.174 | BX176: 1.168 | BY176: 1.162 | BZ176: 1.156 | CA176: 1.15 | CB176: 1.144 | CC176: 1.138 | CD176: 1.132 | CE176: 1.126 | CF176: 1.12 | CG176: 1.114 | CH176: 1.108 | CI176: 1.102 | CJ176: 1.096 | CK176: 1.09 | CL176: 1.084 | CM176: 1.078 | CN176: 1.072 | CO176: 1.066 | CP176: 1.06 | CQ176: 1.0594 | CR176: 1.0588 | CS176: 1.0582 | CT176: 1.0576 | CU176: 1.057 | CV176: =(c_l.max.t-c_l.max.r)*CV149+c_l.max.r -> 1.0564 | CW176: 1.0558 | CX176: 1.0552 | CY176: 1.0546 | CZ176: 1.054 | DA176: 1.0534 | DB176: 1.0528 | DC176: 1.0522 | DD176: 1.0516 | DE176: 1.051 | DF176: 1.0504 | DG176: 1.0498 | DH176: 1.0492 | DI176: 1.0486 | DJ176: 1.048 | DK176: 1.0474 | DL176: 1.0468 | DM176: 1.0462 | DN176: 1.0456 | DO176: 1.045 | DP176: 1.0444 | DQ176: 1.0438 | DR176: 1.0432 | DS176: 1.0426 | DT176: 1.042 | DU176: 1.0414 | DV176: 1.0408 | DW176: 1.0402 | DX176: 1.0396 | DY176: 1.039 | DZ176: 1.0384 | EA176: 1.0378 | EB176: =(c_l.max.t-c_l.max.r)*EB149+c_l.max.r -> 1.0372 | EC176: 1.0366 | ED176: 1.036 | EE176: 1.0354 | EF176: 1.0348 | EG176: 1.0342 | EH176: 1.0336 | EI176: 1.033 | EJ176: 1.0324 | EK176: 1.0318 | EL176: 1.0312 | EM176: 1.0306 | EN176: 1.03 | EO176: 1.0294 | EP176: 1.0288 | EQ176: 1.0282 | ER176: 1.0276 | ES176: 1.027 | ET176: 1.0264 | EU176: 1.0258 | EV176: 1.0252 | EW176: 1.0246 | EX176: 1.024 | EY176: 1.0234 | EZ176: 1.0228 | FA176: 1.0222 | FB176: 1.0216 | FC176: 1.021 | FD176: 1.0204 | FE176: 1.0198 | FF176: 1.0192 | FG176: 1.0186 | FH176: =(c_l.max.t-c_l.max.r)*FH149+c_l.max.r -> 1.018 | FI176: 1.0174 | FJ176: 1.0168 | FK176: 1.0162 | FL176: 1.0156 | FM176: 1.015 | FN176: 1.0144 | FO176: 1.0138 | FP176: 1.0132 | FQ176: 1.0126 | FR176: 1.012 | FS176: 1.0114 | FT176: 1.0108 | FU176: 1.0102 | FV176: 1.0096 | FW176: 1.009 | FX176: 1.0084 | FY176: 1.0078 | FZ176: 1.0072 | GA176: 1.0066 | GB176: 1.006 | GC176: 1.0054 | GD176: 1.0048 | GE176: 1.0042 | GF176: 1.0036 | GG176: 1.003 | GH176: 1.0024 | GI176: 1.0018 | GJ176: 1.0012 | GK176: 1.0006 | GL176: 1
B178: (clmax-clb)/cla | D178: =(D176-D159)/D157 -> 1.935493865 | E178: =(E176-E159)/E157 -> 1.917845343 | F178: 1.899916253 | G178: 1.881759861 | H178: 1.863426058 | I178: 1.844961377 | J178: 1.826409046 | K178: 1.807809055 | L178: 1.789198251 | M178: 1.770610443 | N178: 1.752076517 | O178: 1.733624567 | P178: 1.71528003 | Q178: 1.697065821 | R178: 1.679002476 | S178: 1.661108294 | T178: 1.643399475 | U178: 1.625890265 | V178: 1.608593083 | W178: 1.591518659 | X178: 1.574676162 | Y178: 1.558073318 | Z178: 1.541716534 | AA178: 1.525611003 | AB178: 1.50976082 | AC178: 1.494169075 | AD178: 1.478837956 | AE178: 1.463768834 | AF178: 1.448962354 | AG178: 1.434418513 | AH178: 1.420136738 | AI178: 1.406115957 | AJ178: 1.392354664 | AK178: 1.378850989 | AL178: 1.365602752 | AM178: 1.352607524 | AN178: 1.339862677 | AO178: 1.327365439 | AP178: 1.315112939 | AQ178: 1.303102257 | AR178: 1.291330465 | AS178: 1.279794671 | AT178: 1.268492061 | AU178: 1.257419939 | AV178: 1.246575768 | AW178: 1.235957206 | AX178: 1.22556215 | AY178: 1.215388771 | AZ178: 1.205435555 | BA178: 1.195701343 | BB178: 1.186185378 | BC178: 1.176887339 | BD178: 1.167807395 | BE178: 1.15894625 | BF178: 1.150305192 | BG178: 1.141886152 | BH178: 1.133691764 | BI178: 1.125725425 | BJ178: 1.117991372 | BK178: 1.11049476 | BL178: 1.103241746 | BM178: 1.096239595 | BN178: 1.089496783 | BO178: 1.083023131 | BP178: 1.07682994 | BQ178: =(BQ176-BQ159)/BQ157 -> 1.070930165 | BR178: 1.065338596 | BS178: 1.060072084 | BT178: 1.055149792 | BU178: 1.0505935 | BV178: 1.046427951 | BW178: 1.042681275 | BX178: 1.039385481 | BY178: 1.036577056 | BZ178: 1.034297683 | CA178: 1.03259511 | CB178: 1.031524219 | CC178: 1.031148331 | CD178: 1.031540839 | CE178: 1.032787237 | CF178: 1.034987697 | CG178: 1.038260343 | CH178: 1.042745486 | CI178: 1.048611146 | CJ178: 1.05606036 | CK178: 1.065340993 | CL178: 1.076759134 | CM178: 1.090697729 | CN178: 1.107643037 | CO178: 1.128223147 | CP178: 1.153265592 | CQ178: 1.15605509 | CR178: 1.158901334 | CS178: 1.161805677 | CT178: 1.164769516 | CU178: 1.167794296 | CV178: 1.170881511 | CW178: 1.174032706 | CX178: 1.177249481 | CY178: 1.180533491 | CZ178: 1.183886451 | DA178: 1.187310138 | DB178: 1.190806392 | DC178: 1.19437712 | DD178: 1.198024303 | DE178: 1.201749993 | DF178: 1.205556321 | DG178: 1.209445498 | DH178: 1.213419824 | DI178: 1.217481685 | DJ178: 1.221633564 | DK178: 1.225878043 | DL178: 1.230217808 | DM178: 1.234655655 | DN178: 1.239194497 | DO178: 1.243837369 | DP178: 1.248587433 | DQ178: 1.253447989 | DR178: 1.258422481 | DS178: 1.263514505 | DT178: 1.268727815 | DU178: 1.274066338 | DV178: 1.27953418 | DW178: 1.285135639 | DX178: 1.290875213 | DY178: 1.296757619 | DZ178: 1.302787798 | EA178: 1.308970938 | EB178: 1.315312484 | EC178: =(EC176-EC159)/EC157 -> 1.321818157 | ED178: 1.328493973 | EE178: 1.335346259 | EF178: 1.342381682 | EG178: 1.349607264 | EH178: 1.357030414 | EI178: 1.364658952 | EJ178: 1.372501141 | EK178: 1.380565717 | EL178: 1.388861931 | EM178: 1.397399583 | EN178: 1.406189067 | EO178: 1.415241421 | EP178: 1.424568375 | EQ178: 1.434182415 | ER178: 1.44409684 | ES178: 1.45432584 | ET178: 1.464884568 | EU178: 1.475789235 | EV178: 1.487057198 | EW178: 1.49870708 | EX178: 1.510758882 | EY178: 1.523234128 | EZ178: 1.536156014 | FA178: 1.549549585 | FB178: 1.563441933 | FC178: 1.577862417 | FD178: 1.592842925 | FE178: 1.608418161 | FF178: 1.624625984 | FG178: 1.641507795 | FH178: 1.659108981 | FI178: 1.67747944 | FJ178: 1.696674188 | FK178: 1.71675407 | FL178: 1.737786604 | FM178: 1.759846982 | FN178: 1.783019259 | FO178: 1.807397789 | FP178: 1.833088963 | FQ178: 1.860213323 | FR178: 1.888908167 | FS178: 1.919330786 | FT178: 1.95166252 | FU178: 1.986113895 | FV178: 2.022931232 | FW178: 2.062405228 | FX178: 2.104882309 | FY178: 2.150779882 | FZ178: 2.200607231 | GA178: 2.254994821 | GB178: 2.314736434 | GC178: 2.380851666 | GD178: 2.454682029 | GE178: 2.538045393 | GF178: 2.633498129 | GG178: 2.744812248 | GH178: 2.877928225 | GI178: 3.043122387 | GJ178: 3.261026417 | GK178: 3.586666827 | GL178: 4.631404713 | GM178: =MIN(D178:GL178) -> 1.031148331
B179: Aerodynamic twist at the tip | C179: et | D179: =Eps_t*PI()/180 -> -0.05235987756 | E179: rad | F179: umrechnung!
B181: Plot for wing figure | C181: Eta | D181: LE | E181: 0.25 | F181: TE
C182: 0 | D182: =C193 -> 0.3846153846 | E182: =0.75*C193 -> 0.2884615385 | F182: 0
C183: 1 | D183: =-TAN(C191)+C193 -> -0.04666254196 | E183: =-TAN(phi_25*PI()/180)+0.75*C193 -> -0.0755086958 | F183: =-TAN(C192) -> -0.1620471573
B185: Plot for wing root and wing tip | C185: x | D185: y
C186: 0 | D186: 0
C187: 0 | D187: =C193 -> 0.3846153846
C189: 1 | D189: =D183 -> -0.04666254196
C190: 1 | D190: =F183 -> -0.1620471573
B191: Leading edge Angle of wing figure | C191: =ATAN(TAN(phi_25*PI()/180)-(4/A_w)*(-0.25*((1-lam)/(1+lam)))) -> 0.407176068
B192: Trailing Edge Angle of wing figure | C192: =ATAN(TAN(phi_25*PI()/180)-(4/A_w)*(0.75*((1-lam)/(1+lam)))) -> 0.1606506805
B193: qualitative cg representation for wing figure | C193: =2*2/(A_w*(1+lam)) -> 0.3846153846
